{"text_format":"3","workbook":"xlsx","n_sheets":1,"sheets":["Steel Plates&Sheets"],"not_rendered":{"defined_names":54},"read":"whole","date_system":"1900"}

{"sheet":"Steel Plates&Sheets","index":0,"n_rows":150,"n_cols":36,"rows_kept":150,"merged":[[0,19,0,21],[0,22,0,24],[0,25,0,27],[0,28,0,30],[0,31,0,33],[0,34,0,35],[149,0,162,8]]}
[{"$nulls":19},"Year 1",null,null,"Year 2",null,null,"Year  3",null,null,"Year 4",null,null,"Year 5",null,null,"5 Year Totals"]
["Executive","ITEM NUMBER","ITEM DESCRIPTION","Long text","Search1","UOM","Spec","Grouping","Grade","Type",{"$nulls":3},"YEAR 1\n2025/26","YEAR 2\n2026/27","YEAR 3\n2027/28","YEAR 4\n2028/29","YEAR 5\n2029/30","5 Year Demand","Item Price Excl VAT","Total Excl VAT","Total Including 15% VAT","Item Price Excl VAT","Total Excl VAT","Total Including 15% VAT","Item Price Excl VAT","Total Excl VAT","Total Including 15% VAT","Item Price Excl VAT","Total Excl VAT","Total Including 15% VAT","Item Price Excl VAT","Total Excl VAT","Total Including 15% VAT","Total Excl VAT","Total Including 15% VAT"]
["Manufacturing","011818396","PLATE METAL;8 MM,1300 MM,3300 MM","PLATE, METALLIC; THICKNESS: 8 MM, WIDTH: 1300 MM, LENGTH: 3300 MM, MATERIAL GRADE: EN 10028 GRADE S355 J2+N; GENERAL: MATERIAL CERTIFICATE TO EN 10204 TYPE 3.1 TO BE SUPPLIED. NO RUST OR CORROSION ON THE SURFACE ALLOWED","PLATE","EA","EN 10025 S355 J2+N","Carbon Steel Plates&Sheets","Structural steel","Plates & Sheets",{"$nulls":3},23,0,23,23,23,92,null,{"$f":"+T3*N3","v":0},{"$f":"U3*1.15","v":0},{"$f":"T3*1.06","v":0},{"$f":"(W3*O3)","v":0},{"$f":"X3*1.15","v":0},{"$f":"W3*1.06","v":0},{"$f":"(+Z3)*P3","v":0},{"$f":"AA3*1.15","v":0},{"$f":"Z3*1.06","v":0},{"$f":"(AC3)*Q3","v":0},{"$f":"AD3*1.15","v":0},{"$f":"AC3*1.06","v":0},{"$f":"(+AF3)*R3","v":0},{"$f":"AG3*1.15","v":0},{"$f":"AG3+AD3+AA3+X3+U3","v":0},{"$f":"AI3*1.15","v":0}]
["Manufacturing","068015072","PLATE METAL;XNLJ-10 WAGON,16 MM,3 M,STL","PLATE, METALLIC; TYPE: XNLJ-10 WAGON, THICKNESS: 16 MM, WIDTH: 3 M, LENGTH: 8.5 M, PLATE MATERIAL: STEEL, MATERIAL GRADE: ASTM A516 GRADE 70 N; 1. HEAT TREATMENT: NORMALISED 2. SPECIAL FEATURES: VACUUM TREATMENT; 3. CHARPY V-NOTCH IMPACT TEST. (CVN @ -46","PLATE","EA"," ASTM A516 GRADE 70","Carbon Steel Plates&Sheets","Carbon Steel","Plates & Sheets",{"$nulls":3},180,0,0,0,0,180,null,0,{"$f":"U4*1.15","v":0},0,0,{"$f":"X4*1.15","v":0},0,0,{"$f":"AA4*1.15","v":0},{"$f":"Z4*1.06","v":0},0,{"$f":"AD4*1.15","v":0},0,0,{"$f":"AG4*1.15","v":0},0,{"$f":"AI4*1.15","v":0}]
["Manufacturing","068015091","PLATE METAL;XNLJ-10 WAGON,16 MM,3350 MM","PLATE, METALLIC; TYPE: XNLJ-10 WAGON, THICKNESS: 16 MM, WIDTH: 3350 MM, LENGTH: 8500 MM, PLATE MATERIAL: STEEL, MATERIAL GRADE: ASTM A516 GRADE 70 N; 1. HEAT TREATMENT: NORMALISED 2. SPECIAL FEATURES: VACUUM TREATMENT; 3. CHARPY V-NOTCH IMPACT TEST. (CVN","PLATE","EA"," ASTM A516 GRADE 70","Carbon Steel Plates&Sheets","Carbon Steel","Plates & Sheets",{"$nulls":3},120,0,0,0,0,120,null,0,0,0,0,0,0,0,0,0,0,0,0,0,0,0,0]
["Manufacturing","068015073","PLATE METAL;XNLJ-10 WAGON,20 MM,3000 MM","PLATE, METALLIC; TYPE: XNLJ-10 WAGON, THICKNESS: 20 MM, WIDTH: 3000 MM, LENGTH: 6000 MM, PLATE MATERIAL: STEEL, MATERIAL GRADE: ASTM A516 GRADE 70 N; 1. HEAT TREATMENT: NORMALISED 2. SPECIAL FEATURES: VACUUM TREATMENT; 3. CHARPY V-NOTCH IMPACT TEST. (CVN","PLATE","EA"," ASTM A516 GRADE 70","Carbon Steel Plates&Sheets","Carbon Steel","Plates & Sheets",{"$nulls":3},60,0,0,0,0,60,null,0,0,0,0,0,0,0,0,0,0,0,0,0,0,0,0]
["Manufacturing","011005631","PLATE TREAD 6-7.6x1200x2500mm GRADE 43A","PLATE TREAD STEEL 6.-7.6x1200x2500mm SPEC BS 4360 GRADE 43A CERTIFICATE TO BE SENT WITH STEEL MATERIAL DELIVERED KOEDOESPOORT: MATERIAL MUST BE SUPPLIED FLAT STRAPPED TO A PALLET THE MATERIAL MUST BE RUST FREE SUITABLE FOR LASER CUTTING NO STAMPEDE IDENTI","PLATE","EA","BS 4360 GRADE 43A","Carbon Steel Plates&Sheets","structural mild steel","Plates & Sheets",{"$nulls":3},38,38,38,38,38,190,null,0,0,0,0,0,0,0,0,0,0,0,0,0,0,0,0]
["Manufacturing","911500188","PLATE METAL;8 MM,1200 MM,2500 MM","PLATE, METALLIC; THICKNESS: 8 MM, WIDTH: 1200 MM, LENGTH: 2500 MM; MATERIAL GRADE NEW: EN 10025 S355 JR+AR MATERIAL GRADE OLD: SABS 1413 WR50B1 OR SABS 1431 350WA; GENERAL: MATERIAL CERTIFICATE TO EN 10204 TYPE 3.1 TO BE SUPPLIED. NO RUST OR CORROSION ON","PLATE","EA","EN 10025 S355 JR+AR","Carbon Steel Plates&Sheets","Structural steel","Plates & Sheets",{"$nulls":3},74,74,74,74,74,370,null,0,0,0,0,0,0,0,0,0,0,0,0,0,0,0,0]
["Project Wagons 1000","911500188","PLATE METAL;8 MM,1200 MM,2500 MM","PLATE, METALLIC; THICKNESS: 8 MM, WIDTH: 1200 MM, LENGTH: 2500 MM; MATERIAL GRADE NEW: EN 10025 S355 JR+AR MATERIAL GRADE OLD: SABS 1413 WR50B1 OR SABS 1431 350WA; GENERAL: MATERIAL CERTIFICATE TO EN 10204 TYPE 3.1 TO BE SUPPLIED. NO RUST OR CORROSION ON","PLATE","EA","EN 10025 S355 JR+AR","Carbon Steel Plates&Sheets","Structural steel","Plates & Sheets",{"$nulls":3},10,10,{"$nulls":3},20,null,0,0,0,0,0,0,0,0,0,0,0,0,0,0,0,0]
["Manufacturing","068113881","PLATE METAL;PLATE END,10 MM,WD:50 MM,STL","PLATE, METALLIC; TYPE: PLATE END, THICKNESS: 10 MM, WIDTH: 50 MM, LENGTH: 325 MM, PLATE MATERIAL: STEEL, MATERIAL GRADE: ZINC PLATE D STEEL; CR 10","PLATE","EA","ZINC PLATED STEEL","Carbon Steel Plates&Sheets","Mild Steel","Plates & Sheets",{"$nulls":3},11,11,24,34,35,115,null,0,0,0,0,0,0,0,0,0,0,0,0,0,0,0,0]
["Manufacturing","068016812","PLATE METAL;10 MM,1250 MM,2500 MM","PLATE, METALLIC; THICKNESS: 10 MM, WIDTH: 1250 MM, LENGTH: 2500 MM; MATERIAL GRADE NEW: COMMERCIAL QUALITY MATERIAL GRADE OLD: MILD STEEL; GENERAL: MATERIAL CERTIFICATE TO EN 10204 TYPE 3.1 TO BE SUPPLIED. NO RUST OR CORROSION ON THE SURFACE ALLOWED.","PLATE","EA","commercial quality","Carbon Steel Plates&Sheets","commercial quality","Plates & Sheets",{"$nulls":3},71,71,71,71,71,355,null,0,0,0,0,0,0,0,0,0,0,0,0,0,0,0,0]
["Manufacturing","068016813","PLATE METAL;RAW MATERIAL,10 MM,WD:2 M,MS","PLATE, METALLIC; TYPE: RAW MATERIAL, THICKNESS: 10 MM, WIDTH: 2 M, LENGTH: 3 M, PLATE MATERIAL: MILD STEEL","PLATE","EA","EN 10025 S355 JR+AR","Carbon Steel Plates&Sheets","Structural steel","Plates & Sheets",{"$nulls":3},9,9,9,9,9,45,null,0,0,0,0,0,0,0,0,0,0,0,0,0,0,0,0]
["Manufacturing","068016815","PLATE METAL;RAW MATERIAL,8 MM,WD:1.2 M","PLATE, METALLIC; TYPE: RAW MATERIAL, THICKNESS: 8 MM, WIDTH: 1.2 M, LENGTH: 2.5 M, PLATE MATERIAL: MILD STEEL","PLATE","EA","EN 10025 S355 JR+AR","Carbon Steel Plates&Sheets","Structural steel","Plates & Sheets",{"$nulls":3},63,63,63,63,63,315,null,0,0,0,0,0,0,0,0,0,0,0,0,0,0,0,0]
["Manufacturing","014803171","PLATE;PATCH,CR WAGON END,STL CORTEN","PLATE; TYPE: PATCH, APPLICATION: CR WAGON END, MATERIAL: STEEL CORTEN, DIMENSIONS: WD 200 X LG 800 X THK 5 MM","PLATE","EA","CORTEN","Carbon Steel Plates&Sheets","Low alloy steel","Plates & Sheets",{"$nulls":3},27,27,27,27,27,135,null,0,0,0,0,0,0,0,0,0,0,0,0,0,0,0,0]
["Manufacturing","011822839","PLATE METAL;12 MM,1200 MM,2500 MM","PLATE, METALLIC; THICKNESS: 12 MM, WIDTH: 1200 MM, LENGTH: 2500 MM, MATERIAL GRADE: EN 10025 GRADE S355 JR+AR; GENERAL: MATERIAL CERTIFICATE TO EN 10204 TYPE 3.1 TO BE SUPPLIED. NO RUST OR CORROSION ON THE SURFACE ALLOWED","PLATE","EA","EN 10025 S355 JR+AR","Carbon Steel Plates&Sheets","Structural steel","Plates & Sheets",{"$nulls":3},4,4,4,4,4,20,null,0,0,0,0,0,0,0,0,0,0,0,0,0,0,0,0]
["Manufacturing","311201303","PLATE METAL;10 MM,1200 MM,2500 MM,STL","PLATE, METALLIC; THICKNESS: 10 MM, WIDTH: 1200 MM, LENGTH: 2500 MM, PLATE MATERIAL: STEEL, MATERIAL GRADE: EN 10025 S355JR+AR; GENERAL: MATERIAL CERTIFICATE TO EN 10204 TYPE 3.1 TO BE SUPPLIED. NO RUST OR CORROSION ON THE SURFACE ALLOWED","PLATE","EA","EN 10025 S355 JR+AR","Carbon Steel Plates&Sheets","Structural steel","Plates & Sheets",{"$nulls":3},4,4,4,4,4,20,null,0,0,0,0,0,0,0,0,0,0,0,0,0,0,0,0]
["Manufacturing","011202353","SHEET EXP MTL;MENTEX 5/VEM 489,2.4 M,STL","SHEET, EXPANDED METAL; TYPE: MENTEX 5/VEM 489, LENGTH: 2.4 M, WIDTH: 1.2 M, MATERIAL: STEEL, THICKNESS: 6 MM, MESH LENGTH: 120 MM, MESH WIDTH: 35 MM, SURFACE TREATMENT: GALVANIZED","SHEET","EA","MENTEX 5/VEM 489","Carbon Steel Plates&Sheets","Expanded mild steel mesh","Plates & Sheets",{"$nulls":3},1,1,1,1,1,5,null,0,0,0,0,0,0,0,0,0,0,0,0,0,0,0,0]
["Manufacturing","068113882","PLATE METAL;10 MM,50 MM,830 MM","PLATE, METALLIC; THICKNESS: 10 MM, WIDTH: 50 MM, LENGTH: 830 MM; MATERIAL GRADE NEW: EN 10025 S355 JR+AR; MATERIAL GRADE OLD: ZINC PLATED CR 6/9; GENERAL: MATERIAL CERTIFICATE TO EN 10204 TYPE 3.1 TO BE SUPPLIED. NO RUST OR CORROSION ON THE SURFACE ALLOWE","PLATE","EA","EN 10025 S355 JR+AR","Carbon Steel Plates&Sheets","Structural steel","Plates & Sheets",{"$nulls":3},187,187,416,593,606,1989,null,0,0,0,0,0,0,0,0,0,0,0,0,0,0,0,0]
["Manufacturing","711050204","SHEET METAL;EN 10025 GR S355 JR+AR,STL","SHEET, METALLIC; MATERIAL GRADE: EN 10025 GRADE S355 JR+AR, MATERIAL: STEEL, THICKNESS: 4 MM, WIDTH: 1225 MM, LENGTH: 2450 MM; GENERAL: MATERIAL CERTIFICATE TO EN 10204 TYPE 3.1 TO BE SUPPLIED. NO RUST OR CORROSION ON THE SURFACE ALLOWED","SHEET","EA","EN 10025 S355 JR+AR","Carbon Steel Plates&Sheets","Structural steel","Plates & Sheets",{"$nulls":3},33,33,33,33,33,165,null,0,0,0,0,0,0,0,0,0,0,0,0,0,0,0,0]
["Project Wagons 1000","711050204","SHEET METAL;EN 10025 GR S355 JR+AR,STL","SHEET, METALLIC; MATERIAL GRADE: EN 10025 GRADE S355 JR+AR, MATERIAL: STEEL, THICKNESS: 4 MM, WIDTH: 1225 MM, LENGTH: 2450 MM; GENERAL: MATERIAL CERTIFICATE TO EN 10204 TYPE 3.1 TO BE SUPPLIED. NO RUST OR CORROSION ON THE SURFACE ALLOWED","SHEET","EA","EN 10025 S355 JR+AR","Carbon Steel Plates&Sheets","Structural steel","Plates & Sheets",{"$nulls":3},20,20,{"$nulls":3},40,null,0,0,0,0,0,0,0,0,0,0,0,0,0,0,0,0]
["Project Wagons 1000","011009598","PLATE METAL;16 MM,1500 MM,3000 MM","PLATE, METALLIC; THICKNESS: 16 MM, WIDTH: 1500 MM, LENGTH: 3000 MM; MATERIAL GRADE NEW: EN 10025 S355 JR+AR; MATERIAL GRADE OLD: SABS 1431; GENERAL: MATERIAL CERTIFICATE TO EN 10204 TYPE 3.1 TO BE SUPPLIED. NO RUST OR CORROSION ON THE SURFACE ALLOWED. MAX","PLATE","EA","EN 10025 S355 JR+AR","Carbon Steel Plates&Sheets","Structural Steel","Plates & Sheets",{"$nulls":3},11,11,{"$nulls":3},22,null,0,0,0,0,0,0,0,0,0,0,0,0,0,0,0,0]
["Manufacturing","011671588","PLATE METAL;100 MM,2500 MM,3000 MM","PLATE, METALLIC; THICKNESS: 100 MM, WIDTH: 2500 MM, LENGTH: 3000 MM, MATERIAL GRADE: EN 10025 GRADE S355 J2+N; GENERAL: MATERIAL CERTIFICATE TO EN 10204 TYPE 3.1 TO BE SUPPLIED. NO RUST OR CORROSION ON THE SURFACE ALLOWED. CAST FORM TO BE DELIVERED WITH M","PLATE","EA","EN 10025 S355 J2+N","Carbon Steel Plates&Sheets","Structural steel","Plates & Sheets",{"$nulls":3},1,1,1,1,1,5,null,0,0,0,0,0,0,0,0,0,0,0,0,0,0,0,0]
["Manufacturing","068113450","SHEET METAL;300WA,STL,0.5,686,2400,IBR","SHEET, METALLIC; MATERIAL GRADE: 300WA, MATERIAL: STEEL, THICKNESS: 0.5, WIDTH: 686, LENGTH: 2400, TYPE: INVERTED BOX RIB, SURFACE TREATMENT: GALVANIZED, SPECIAL FEATURES: FULL HARD; MOTOR CAR CARRIERS ROOFING","SHEET","EA","EN 10025 S355 JR+AR","Carbon Steel Plates&Sheets","Structural steel","Plates & Sheets",{"$nulls":3},7,7,7,7,7,35,null,0,0,0,0,0,0,0,0,0,0,0,0,0,0,0,0]
["Manufacturing","068016704","PLATE METAL;SHEET,5 MM,1.5 M,3 M,MS","PLATE, METALLIC; TYPE: SHEET, THICKNESS: 5 MM, WIDTH: 1.5 M, LENGTH: 3 M, PLATE MATERIAL: MILD STEEL, MATERIAL GRADE: SANS 50025 GRADE S355 JR+AR","PLATE","EA","EN 10025 S355 JR+AR","Carbon Steel Plates&Sheets","Structural steel","Plates & Sheets",{"$nulls":3},7,7,7,7,7,35,null,0,0,0,0,0,0,0,0,0,0,0,0,0,0,0,0]
["Manufacturing","711050253","PLATE METAL;10 MM,1200 MM,2500 MM","PLATE, METALLIC; THICKNESS: 10 MM, WIDTH: 1200 MM, LENGTH: 2500 MM; MATERIAL GRADE NEW: BS 1501-161 430A MATERIAL GRADE OLD: BS1501-161 430A; GENERAL: MATERIAL CERTIFICATE TO EN 10204 TYPE 3.1 TO BE SUPPLIED. NO RUST OR CORROSION ON THE SURFACE ALLOWED. P","PLATE","EA","BS 1501-161 430A","Carbon Steel Plates&Sheets","carbon steel","Plates & Sheets",{"$nulls":3},5,5,5,5,5,25,null,0,0,0,0,0,0,0,0,0,0,0,0,0,0,0,0]
["Manufacturing","011818354","PLATE METAL;16 MM,1200 MM,2500 MM","PLATE, METALLIC; THICKNESS: 16 MM, WIDTH: 1200 MM, LENGTH: 2500 MM, MATERIAL GRADE: EN 10025 GRADE S355 J2+N; GENERAL: MATERIAL CERTIFICATE TO EN 10204 TYPE 3.1 TO BE SUPPLIED. NO RUST OR CORROSION ON THE SURFACE ALLOWED. ADHERE TO TESTING CODE EN 10160","PLATE","EA","EN 10025 S355 J2+N","Carbon Steel Plates&Sheets","Structural steel","Plates & Sheets",{"$nulls":3},206,206,206,206,206,1030,null,0,0,0,0,0,0,0,0,0,0,0,0,0,0,0,0]
["Project Wagons 1000","011818354","PLATE METAL;16 MM,1200 MM,2500 MM","PLATE, METALLIC; THICKNESS: 16 MM, WIDTH: 1200 MM, LENGTH: 2500 MM, MATERIAL GRADE: EN 10025 GRADE S355 J2+N; GENERAL: MATERIAL CERTIFICATE TO EN 10204 TYPE 3.1 TO BE SUPPLIED. NO RUST OR CORROSION ON THE SURFACE ALLOWED. ADHERE TO TESTING CODE EN 10160","PLATE","EA","EN 10025 S355 J2+N","Carbon Steel Plates&Sheets","Structural steel","Plates & Sheets",{"$nulls":3},55,55,{"$nulls":3},110,null,0,0,0,0,0,0,0,0,0,0,0,0,0,0,0,0]
["Manufacturing","511662368","SHEET METAL;COMM QUALITY,STL,4 MM","SHEET, METALLIC; MATERIAL GRADE: COMMERCIAL QUALITY, MATERIAL: STEEL, THICKNESS: 4 MM, WIDTH: 1225 MM, LENGTH: 2450 MM; GENERAL: MATERIAL CERTIFICATE TO EN 10204 TYPE 3.1 TO BE SUPPLIED. NO RUST OR CORROSION ON THE SURFACE ALLOWED. KOEDOESPOORT MAX LOAD O","SHEET","EA","commercial quality","Carbon Steel Plates&Sheets","commercial quality","Plates & Sheets",{"$nulls":3},21,21,21,21,21,105,null,0,0,0,0,0,0,0,0,0,0,0,0,0,0,0,0]
["Project Wagons 1000","511662368","SHEET METAL;COMM QUALITY,STL,4 MM","SHEET, METALLIC; MATERIAL GRADE: COMMERCIAL QUALITY, MATERIAL: STEEL, THICKNESS: 4 MM, WIDTH: 1225 MM, LENGTH: 2450 MM; GENERAL: MATERIAL CERTIFICATE TO EN 10204 TYPE 3.1 TO BE SUPPLIED. NO RUST OR CORROSION ON THE SURFACE ALLOWED. KOEDOESPOORT MAX LOAD O","SHEET","EA","commercial quality","Carbon Steel Plates&Sheets","commercial quality","Plates & Sheets",{"$nulls":3},18,18,{"$nulls":3},36,null,0,0,0,0,0,0,0,0,0,0,0,0,0,0,0,0]
["Manufacturing","011000854","PLATE METAL;5 MM,WD:1.65 M,LG:2.85 M,STL","PLATE, METALLIC; THICKNESS: 5 MM, WIDTH: 1.65 M, LENGTH: 2.85 M, PLATE MATERIAL: STEEL, MATERIAL GRADE: SANS 50025/EN 10025 GRADE S355 JR+AR","PLATE","EA","EN 10025 S355 JR+AR","Carbon Steel Plates&Sheets","Structural steel","Plates & Sheets",{"$nulls":3},25,25,55,78,80,263,null,0,0,0,0,0,0,0,0,0,0,0,0,0,0,0,0]
["Manufacturing","611000178","PLATE METAL;6 MM,WD:1.5 M,LG:3 M,STL","PLATE, METALLIC; THICKNESS: 6 MM, WIDTH: 1.5 M, LENGTH: 3 M, PLATE MATERIAL: STEEL, MATERIAL GRADE: SANS 50025/EN 10025 GRADE S355 JR+AR","PLATE","EA","EN 10025 S355 JR+AR","Carbon Steel Plates&Sheets","Structural steel","Plates & Sheets",{"$nulls":3},21,21,21,21,21,105,null,0,0,0,0,0,0,0,0,0,0,0,0,0,0,0,0]
["Manufacturing","311005529","PLATE METAL;32 MM,1.2 M,2.5 M,STL BS4360","PLATE, METALLIC; THICKNESS: 32 MM, WIDTH: 1.2 M, LENGTH: 2.5 M, PLATE MATERIAL: STEEL BS4360, MATERIAL GRADE: ZINC PLATED STEEL","PLATE","EA","ZINC PLATED STEEL","Carbon Steel Plates&Sheets","Mild Steel","Plates & Sheets",{"$nulls":3},4,4,4,4,4,20,null,0,0,0,0,0,0,0,0,0,0,0,0,0,0,0,0]
["Manufacturing","011837661","SHEET METAL;STL,8 MM,1500 MM,3000 MM","SHEET, METALLIC; MATERIAL GRADE: NEW EN 10025 GRADE S355 JR+AR, OLD 355 MC, MATERIAL: STEEL, THICKNESS: 8 MM, WIDTH: 1500 MM, LENGTH: 3000 MM; GENERAL: MATERIAL CERTIFICATE TO EN 10204 TYPE 3.1 TO BE SUPPLIED. NO RUST OR CORROSION ON THE SURFACE ALLOWED","SHEET","EA","EN 10025 S355 JR+AR","Carbon Steel Plates&Sheets","Structural steel","Plates & Sheets",{"$nulls":3},5,5,5,5,5,25,null,0,0,0,0,0,0,0,0,0,0,0,0,0,0,0,0]
["Manufacturing","311201167","SHEET EXP MTL;FLATEX 346/VEM 6320H,2.4 M","SHEET, EXPANDED METAL; TYPE: FLATEX 346/VEM 6320H, LENGTH: 2.4 M, WIDTH: 1.2 M, MATERIAL: STEEL, THICKNESS: 3 MM, MESH LENGTH: 50 M M, MESH WIDTH: 25 MM, SURFACE TREATMENT: GALVANIZED","SHEET","EA","FLATEX 346","Carbon Steel Plates&Sheets","Mild steel floor plate","Plates & Sheets",{"$nulls":3},5,5,5,5,5,25,null,0,0,0,0,0,0,0,0,0,0,0,0,0,0,0,0]
["Manufacturing","911500194","PLATE METAL;10 MM,1200 MM,2500 MM","PLATE, METALLIC; THICKNESS: 10 MM, WIDTH: 1200 MM, LENGTH: 2500 MM; MATERIAL GRADE NEW: EN 10025 S355 JR+AR MATERIAL GRADE OLD: SABS 1413 WR50B1 OR SABS 1431 350WA; GENERAL: MATERIAL CERTIFICATE TO EN 10204 TYPE 3.1 TO BE SUPPLIED. NO RUST OR CORROSION ON","PLATE","EA","EN 10025 S355 JR+AR","Carbon Steel Plates&Sheets","Structural steel","Plates & Sheets",{"$nulls":3},23,23,23,23,23,115,null,{"$f":"+T35*N35","v":0},0,{"$f":"T35*1.06","v":0},{"$f":"(W35*O35)","v":0},0,{"$f":"W35*1.06","v":0},{"$f":"(+Z35)*P35","v":0},0,0,{"$f":"(AC35)*Q35","v":0},0,{"$f":"AC35*1.06","v":0},{"$f":"(+AF35)*R35","v":0},0,{"$f":"AG35+AD35+AA35+X35+U35","v":0},0]
["Project Wagons 1000","911500194","PLATE METAL;10 MM,1200 MM,2500 MM","PLATE, METALLIC; THICKNESS: 10 MM, WIDTH: 1200 MM, LENGTH: 2500 MM; MATERIAL GRADE NEW: EN 10025 S355 JR+AR MATERIAL GRADE OLD: SABS 1413 WR50B1 OR SABS 1431 350WA; GENERAL: MATERIAL CERTIFICATE TO EN 10204 TYPE 3.1 TO BE SUPPLIED. NO RUST OR CORROSION ON","PLATE","EA","EN 10025 S355 JR+AR","Carbon Steel Plates&Sheets","Structural steel","Plates & Sheets",{"$nulls":3},43,43,{"$nulls":3},86,null,0,0,0,0,0,0,0,0,0,0,0,0,0,0,0,0]
["Manufacturing","011668843","PLATE METAL;8 MM,1900 M,4050 MM","PLATE, METALLIC; THICKNESS: 8 MM, WIDTH: 1900 M, LENGTH: 4050 MM; MATERIAL GRADE NEW: EN 10025 S355 JR+AR MATERIAL GRADE OLD: SABS 1431 350WA; GENERAL: MATERIAL CERTIFICATE TO EN 10204 TYPE 3.1 TO BE SUPPLIED. NO RUST OR CORROSION ON THE SURFACE ALLOWED","PLATE","EA","EN 10025 S355 JR+AR","Carbon Steel Plates&Sheets","Structural steel","Plates & Sheets",{"$nulls":3},22,22,22,22,22,110,null,0,0,0,0,0,0,0,0,0,0,0,0,0,0,0,0]
["Project Wagons 1000","011668843","PLATE METAL;8 MM,1900 M,4050 MM","PLATE, METALLIC; THICKNESS: 8 MM, WIDTH: 1900 M, LENGTH: 4050 MM; MATERIAL GRADE NEW: EN 10025 S355 JR+AR MATERIAL GRADE OLD: SABS 1431 350WA; GENERAL: MATERIAL CERTIFICATE TO EN 10204 TYPE 3.1 TO BE SUPPLIED. NO RUST OR CORROSION ON THE SURFACE ALLOWED","PLATE","EA","EN 10025 S355 JR+AR","Carbon Steel Plates&Sheets","Structural steel","Plates & Sheets",{"$nulls":3},150,150,{"$nulls":3},300,null,0,0,0,0,0,0,0,0,0,0,0,0,0,0,0,0]
["Manufacturing","611600048","PLATE METAL;12 MM,1200 MM,2500 MM","PLATE, METALLIC; THICKNESS: 12 MM, WIDTH: 1200 MM, LENGTH: 2500 MM, MATERIAL GRADE: EN 10025 S355 JR+AR; GENERAL: MATERIAL CERTIFICATE TO EN 10204 TYPE 3.1 TO BE SUPPLIED. NO RUST OR CORROSION ON THE SURFACE ALLOWED","PLATE","EA","EN 10025 S355 JR+AR","Carbon Steel Plates&Sheets","Structural steel","Plates & Sheets",{"$nulls":3},3,3,3,3,3,15,null,0,0,0,0,0,0,0,0,0,0,0,0,0,0,0,0]
["Manufacturing","911500192","PLATE METAL;12 MM,1200 MM,2500 MM","PLATE, METALLIC; THICKNESS: 12 MM, WIDTH: 1200 MM, LENGTH: 2500 MM; MATERIAL GRADE NEW: EN 10025 S355 JR+AR MATERIAL GRADE OLD: SABS 1413 WR50B1 OR SABS 1431 350WA; GENERAL: MATERIAL CERTIFICATE TO EN 10204 TYPE 3.1 TO BE SUPPLIED. NO RUST OR CORROSION ON","PLATE","EA","EN 10025 S355 JR+AR","Carbon Steel Plates&Sheets","Structural steel","Plates & Sheets",{"$nulls":3},71,71,71,71,71,355,null,0,0,0,0,0,0,0,0,0,0,0,0,0,0,0,0]
["Manufacturing","911500561","PLATE METAL;8 MM,1200 MM,2500 MM","PLATE, METALLIC; THICKNESS: 8 MM, WIDTH: 1200 MM, LENGTH: 2500 MM, MATERIAL GRADE: EN 10025 GRADE S355 JR+AR; GENERAL: MATERIAL CERTIFICATE TO EN 10204 TYPE 3.1 TO BE SUPPLIED. NO RUST OR CORROSION ON THE SURFACE ALLOWED","PLATE","EA","EN 10025 S355 JR+AR","Carbon Steel Plates&Sheets","Structural steel","Plates & Sheets",{"$nulls":3},70,70,70,70,70,350,null,0,0,0,0,0,0,0,0,0,0,0,0,0,0,0,0]
["Project Wagons 1000","911500192","PLATE METAL;12 MM,1200 MM,2500 MM","PLATE, METALLIC; THICKNESS: 12 MM, WIDTH: 1200 MM, LENGTH: 2500 MM; MATERIAL GRADE NEW: EN 10025 S355 JR+AR MATERIAL GRADE OLD: SABS 1413 WR50B1 OR SABS 1431 350WA; GENERAL: MATERIAL CERTIFICATE TO EN 10204 TYPE 3.1 TO BE SUPPLIED. NO RUST OR CORROSION ON","PLATE","EA","EN 10025 S355 JR+AR","Carbon Steel Plates&Sheets","Structural steel","Plates & Sheets",{"$nulls":3},118.5,118.5,{"$nulls":3},237,null,0,0,0,0,0,0,0,0,0,0,0,0,0,0,0,0]
["Project Wagons 1000","911500561","PLATE METAL;8 MM,1200 MM,2500 MM","PLATE, METALLIC; THICKNESS: 8 MM, WIDTH: 1200 MM, LENGTH: 2500 MM, MATERIAL GRADE: EN 10025 GRADE S355 JR+AR; GENERAL: MATERIAL CERTIFICATE TO EN 10204 TYPE 3.1 TO BE SUPPLIED. NO RUST OR CORROSION ON THE SURFACE ALLOWED","PLATE","EA","EN 10025 S355 JR+AR","Carbon Steel Plates&Sheets","Structural steel","Plates & Sheets",{"$nulls":3},35,35,{"$nulls":3},70,null,0,0,0,0,0,0,0,0,0,0,0,0,0,0,0,0]
["Manufacturing","011671593","PLATE METAL;6 MM,1200 MM,2500 MM,SS","PLATE, METALLIC; THICKNESS: 6 MM, WIDTH: 1200 MM, LENGTH: 2500 MM, PLATE MATERIAL: STAINLESS STEEL; MATERIAL GRADE NEW: EN 10088 X5CRNI 18-10 ; MATERIAL GRADE OLD: X5CRNI18-10 (1.4301); GENERAL: MATERIAL CERTIFICATE TO EN 10204 TYPE 3.1 TO BE SUPPLIED. NO","PLATE","EA","EN 10088 X5CRNI 18-10","Carbon Steel Plates&Sheets","Stainless Steel","Plates & Sheets",{"$nulls":3},6,0,0,6,0,12,null,0,0,0,0,0,0,0,0,0,0,0,0,0,0,0,0]
["Manufacturing","011818358","PLATE METAL;30 MM,1200 MM,2500 MM","PLATE, METALLIC; THICKNESS: 30 MM, WIDTH: 1200 MM, LENGTH: 2500 MM, MATERIAL GRADE: EN10025 GRADE S355 J2+N; GENERAL: MATERIAL CERTIFICATE TO EN 10204 TYPE 3.1 TO BE SUPPLIED. NO RUST OR CORROSION ON THE SURFACE ALLOWED. ADHERE TO TESTING CODE EN 10160","PLATE","EA","EN 10025 S355 J2+N","Carbon Steel Plates&Sheets","Structural steel","Plates & Sheets",{"$nulls":3},21,21,21,21,21,105,null,0,0,0,0,0,0,0,0,0,0,0,0,0,0,0,0]
["Manufacturing","011830585","PLATE METAL;6 MM,1500 MM,3000 MM","PLATE, METALLIC; THICKNESS: 6 MM, WIDTH: 1500 MM, LENGTH: 3000 MM, MATERIAL GRADE: EN 10025 GRADE S355 JR+AR; GENERAL: MATERIAL CERTIFICATE TO EN 10204 TYPE 3.1 TO BE SUPPLIED. NO RUST OR CORROSION ON THE SURFACE ALLOWED","PLATE","EA","EN 10025 S355 JR+AR","Carbon Steel Plates&Sheets","Structural steel","Plates & Sheets",{"$nulls":3},10,10,20,10,10,60,null,0,0,0,0,0,0,0,0,0,0,0,0,0,0,0,0]
["Manufacturing","011853166","PLATE METAL;6 MM,1.5 M,3 M,STL","PLATE, METALLIC; THICKNESS: 6 MM, WIDTH: 1.5 M, LENGTH: 3 M, PLATE MATERIAL: STEEL, MATERIAL GRADE: TM 600/S690QL","PLATE","EA","TM 600/S690QL","Carbon Steel Plates&Sheets","Structural Steel","Plates & Sheets",{"$nulls":3},75,96,105,105,105,486,null,0,0,0,0,0,0,0,0,0,0,0,0,0,0,0,0]
["Manufacturing","011854931","PLATE METAL;6 MM,1.5 M,3 M,STL","PLATE, METALLIC; THICKNESS: 6 MM, WIDTH: 1.5 M, LENGTH: 3 M, PLATE MATERIAL: STEEL, MATERIAL GRADE: VRN 400 OR HARDOX 400 OR SIMILAR","PLATE","EA","VRN400","Carbon Steel Plates&Sheets","Carbon Steel_Plate&Sheet_SA  wear-resistant","Plates & Sheets",{"$nulls":3},75,95,105,105,105,485,null,0,0,0,0,0,0,0,0,0,0,0,0,0,0,0,0]
["Manufacturing","011818337","PLATE METAL;4 MM,1225 MM,2450 MM","PLATE, METALLIC; THICKNESS: 4 MM, WIDTH: 1225 MM, LENGTH: 2450 MM, MATERIAL GRADE: EN 10025 GRADE S355 JR+AR; GENERAL: MATERIAL CERTIFICATE TO EN 10204 TYPE 3.1 TO BE SUPPLIED. NO RUST OR CORROSION ON THE SURFACE ALLOWED","PLATE","EA","EN 10025 S355 JR+AR","Carbon Steel Plates&Sheets","Structural steel","Plates & Sheets",{"$nulls":3},82,82,82,82,82,410,null,0,0,0,0,0,0,0,0,0,0,0,0,0,0,0,0]
["Manufacturing","088838590","SHEET EXP MTL;MENTEX 72,3.13 M,760 MM","SHEET, EXPANDED METAL; TYPE: MENTEX 72, LENGTH: 3.13 M, WIDTH: 760 MM, MATERIAL: STEEL, THICKNESS: 3 MM, MESH LENGTH: 60 MM, MESH W IDTH: 20 MM, MESH SHAPE STYLE: DIAMOND; PLATFORM ASSEMBLY TOP PLATE","SHEET","EA","MENTEX72","Carbon Steel Plates&Sheets","Expanded mild steel mesh","Plates & Sheets",{"$nulls":3},60,77,85,85,85,392,null,0,0,0,0,0,0,0,0,0,0,0,0,0,0,0,0]
["Manufacturing","011818361","PLATE METAL;40 MM,1200 MM,2500 MM","PLATE, METALLIC; THICKNESS: 40 MM, WIDTH: 1200 MM, LENGTH: 2500 MM, MATERIAL GRADE: EN10025 GRADE S355 J2+N; GENERAL: MATERIAL CERTIFICATE TO EN 10204 TYPE 3.1 TO BE SUPPLIED. NO RUST OR CORROSION ON THE SURFACE ALLOWED. ADHERE TO TESTING CODE EN 10160","PLATE","EA","EN 10025 S355 J2+N","Carbon Steel Plates&Sheets","Structural steel","Plates & Sheets",{"$nulls":3},28,28,28,28,28,140,null,0,0,0,0,0,0,0,0,0,0,0,0,0,0,0,0]
["Manufacturing","011840638","PLATE METAL;20 MM,2500 MM,6200 MM","PLATE, METALLIC; THICKNESS: 20 MM, WIDTH: 2500 MM, LENGTH: 6200 MM; MATERIAL GRADE NEW: EN 10025 S355 J2+N MATERIAL GRADE OLD: EN 10028 GRADE P355 NL1 / EN 10025 GRADE S355 J2+N; GENERAL: MATERIAL CERTIFICATE TO EN 10204 TYPE 3.1 TO BE SUPPLIED. NO RUST O","PLATE","EA","EN 10025 S355 J2+N","Carbon Steel Plates&Sheets","Structural steel","Plates & Sheets",{"$nulls":3},39,39,39,39,39,195,null,0,0,0,0,0,0,0,0,0,0,0,0,0,0,0,0]
["Project Wagons 1000","011818341","PLATE METAL;6 MM,1200 MM,2500 MM","PLATE, METALLIC; THICKNESS: 6 MM, WIDTH: 1200 MM, LENGTH: 2500 MM, MATERIAL GRADE: EN 10025 S355 J2/N; GENERAL: MATERIAL CERTIFICATE TO EN 10204 TYPE 3.1 TO BE SUPPLIED. NO RUST OR CORROSION ON THE SURFACE ALLOWED","PLATE","EA","EN 10025 S355 J2+N","Carbon Steel Plates&Sheets","Structural Steel","Plates & Sheets",{"$nulls":3},1,1,{"$nulls":3},2,null,0,0,0,0,0,0,0,0,0,0,0,0,0,0,0,0]
["Project Wagons 1000","011840638","PLATE METAL;20 MM,2500 MM,6200 MM","PLATE, METALLIC; THICKNESS: 20 MM, WIDTH: 2500 MM, LENGTH: 6200 MM; MATERIAL GRADE NEW: EN 10025 S355 J2+N MATERIAL GRADE OLD: EN 10028 GRADE P355 NL1 / EN 10025 GRADE S355 J2+N; GENERAL: MATERIAL CERTIFICATE TO EN 10204 TYPE 3.1 TO BE SUPPLIED. NO RUST O","PLATE","EA","EN 10025 S355 J2+N","Carbon Steel Plates&Sheets","Structural steel","Plates & Sheets",{"$nulls":3},4,4,{"$nulls":3},8,null,0,0,0,0,0,0,0,0,0,0,0,0,0,0,0,0]
["Manufacturing","611600052","PLATE METAL;8 MM,1200 MM,2500 MM","PLATE, METALLIC; THICKNESS: 8 MM, WIDTH: 1200 MM, LENGTH: 2500 MM, MATERIAL GRADE: EN 10025 GRADE S355 JR+AR; GENERAL: MATERIAL CERTIFICATE TO EN 10204 TYPE 3.1 TO BE SUPPLIED. NO RUST OR CORROSION ON THE SURFACE ALLOWED","PLATE","EA","EN 10025 S355 JR+AR","Carbon Steel Plates&Sheets","Structural steel","Plates & Sheets",{"$nulls":3},4,0,4,4,4,16,null,0,0,0,0,0,0,0,0,0,0,0,0,0,0,0,0]
["Manufacturing","011822840","PLATE METAL;16 MM,1200 MM,2500 MM","PLATE, METALLIC; THICKNESS: 16 MM, WIDTH: 1200 MM, LENGTH: 2500 MM, MATERIAL GRADE: EN 10025 GRADE S355 JR; GENERAL: MATERIAL CERTIFICATE TO EN 10204 TYPE 3.1 TO BE SUPPLIED. NO RUST OR CORROSION ON THE SURFACE ALLOWED","PLATE","EA","EN 10025 S355 JR+AR","Carbon Steel Plates&Sheets","Structural steel","Plates & Sheets",{"$nulls":3},210,83,210,210,210,923,null,0,0,0,0,0,0,0,0,0,0,0,0,0,0,0,0]
["Manufacturing","068016703","PLATE METAL;SHEET,8 MM,WD:1.5 M,LG:3 M","PLATE, METALLIC; TYPE: SHEET, THICKNESS: 8 MM, WIDTH: 1.5 M, LENGTH: 3 M, PLATE MATERIAL: MILD STEEL, MATERIAL GRADE: SANS 50025 GRADE 355 JR + AR","PLATE","EA","EN 10025 S355 JR+AR","Carbon Steel Plates&Sheets","Structural steel","Plates & Sheets",{"$nulls":3},20,20,20,20,20,100,null,0,0,0,0,0,0,0,0,0,0,0,0,0,0,0,0]
["Manufacturing","911500211","PLATE METAL;6 MM,1800 MM,3000 MM","PLATE, METALLIC; THICKNESS: 6 MM, WIDTH: 1800 MM, LENGTH: 3000 MM; MATERIAL GRADE NEW: EN 10025 S355 JR+AR MATERIAL GRADE OLD: SABS 1413 WR50B1 OR SABS 1431 350WA; GENERAL: MATERIAL CERTIFICATE TO EN 10204 TYPE 3.1 TO BE SUPPLIED. NO RUST OR CORROSION ON","PLATE","EA","EN 10025 S355 JR+AR","Carbon Steel Plates&Sheets","Structural steel","Plates & Sheets",{"$nulls":3},31,31,31,31,31,155,null,0,0,0,0,0,0,0,0,0,0,0,0,0,0,0,0]
["Manufacturing","311200572","SHEET METAL;EN 10025 GR S355 JR+AR,STL","SHEET, METALLIC; MATERIAL GRADE: EN 10025 GRADE S355 JR+AR, MATERIAL: STEEL, THICKNESS: 3 MM, WIDTH: 1200 MM, LENGTH: 3000 MM; GENERAL: MATERIAL CERTIFICATE TO EN 10204 TYPE 3.1 TO BE SUPPLIED. NO RUST OR CORROSION ON THE SURFACE ALLOWED. MASS: 12.2 KG/M.","SHEET","EA","EN 10025 S355 JR+AR","Carbon Steel Plates&Sheets","Structural steel","Plates & Sheets",{"$nulls":3},742,742,742,742,742,3710,null,0,0,0,0,0,0,0,0,0,0,0,0,0,0,0,0]
["Project Wagons 1000","311200572","SHEET METAL;EN 10025 GR S355 JR+AR,STL","SHEET, METALLIC; MATERIAL GRADE: EN 10025 GRADE S355 JR+AR, MATERIAL: STEEL, THICKNESS: 3 MM, WIDTH: 1200 MM, LENGTH: 3000 MM; GENERAL: MATERIAL CERTIFICATE TO EN 10204 TYPE 3.1 TO BE SUPPLIED. NO RUST OR CORROSION ON THE SURFACE ALLOWED. MASS: 12.2 KG/M.","SHEET","EA","EN 10025 S355 JR+AR","Carbon Steel Plates&Sheets","Structural steel","Plates & Sheets",{"$nulls":3},1,1,{"$nulls":3},2,null,0,0,0,0,0,0,0,0,0,0,0,0,0,0,0,0]
["Manufacturing","011820208","PLATE METAL;12 MM,3000 MM,6000 MM","PLATE, METALLIC; THICKNESS: 12 MM, WIDTH: 3000 MM, LENGTH: 6000 MM,  MATERIAL GRADE: ASTM A516 GRADE 70 N; 1. HEAT TREATMENT: NORMALISED 2. SPECIAL FEATURES: VACUUM TREATMENT; 3. CHARPY V-NOTCH IMPACT TEST. (CVN @ -46 DEGREES CELSIUS). 4. ULTRASONIC EXAMI","PLATE","EA"," ASTM A516 GRADE 70","Carbon Steel Plates&Sheets","Carbon Steel","Plates & Sheets",{"$nulls":3},320,0,0,0,0,320,null,0,0,0,0,0,0,0,0,0,0,0,0,0,0,0,0]
["Manufacturing","011671576","PLATE METAL;16 MM,1500 MM,6800 MM","PLATE, METALLIC; THICKNESS: 16 MM, WIDTH: 1500 MM, LENGTH: 6800 MM, MATERIAL GRADE: EN 10025 GRADE S355 J2C+N, SPECIAL FEATURES: CAST FORM TO BE DELIVERED WITH MATERIAL; GENERAL: MATERIAL CERTIFICATE TO EN 10204 TYPE 3.1 TO BE SUPPLIED. NO RUST OR CORROSI","PLATE","EA"," EN 10025  S355 J2C+N","Carbon Steel Plates&Sheets","Structural steel","Plates & Sheets",{"$nulls":3},300,100,102,300,100,902,null,0,0,0,0,0,0,0,0,0,0,0,0,0,0,0,0]
["Manufacturing","011087307","PLATE METAL;8 MM,1925 MM,6200 MM","PLATE, METALLIC; THICKNESS: 8 MM, WIDTH: 1925 MM, LENGTH: 6200 MM; MATERIAL GRADE NEW: EN 10025 S355 JR+AR MATERIAL GRADE OLD: SABS 1431 350WA OR CORTEN; GENERAL: MATERIAL CERTIFICATE TO EN 10204 TYPE 3.1 TO BE SUPPLIED. NO RUST OR CORROSION ON THE SURFAC","PLATE","EA","EN 10025 S355 JR+AR","Carbon Steel Plates&Sheets","Structural steel","Plates & Sheets",{"$nulls":3},336,336,336,336,336,1680,null,0,0,0,0,0,0,0,0,0,0,0,0,0,0,0,0]
["Manufacturing","011008849","PLATE METAL;10 MM,2400 MM,12000 MM","PLATE, METALLIC; THICKNESS: 10 MM, WIDTH: 2400 MM, LENGTH: 12000 MM; MATERIAL GRADE NEW: EN 10025 S460 QL MATERIAL GRADE OLD: ROQ LAST AD360; GENERAL: MATERIAL CERTIFICATE TO EN 10204 TYPE 3.1 TO BE SUPPLIED. NO RUST OR CORROSION ON THE SURFACE ALLOWED. D","PLATE","EA","EN 10025 S460","Carbon Steel Plates&Sheets","Structural steel","Plates & Sheets",{"$nulls":3},4,4,4,4,4,20,null,0,0,0,0,0,0,0,0,0,0,0,0,0,0,0,0]
["Manufacturing","011848556","PLATE METAL;25 MM,1.5 M,2.5 M,STL,VRN400","PLATE, METALLIC; THICKNESS: 25 MM, WIDTH: 1.5 M, LENGTH: 2.5 M, PLATE MATERIAL: STEEL, MATERIAL GRADE: VRN400","PLATE","EA","VRN400","Carbon Steel Plates&Sheets","Carbon Steel_Plate&Sheet_SA  wear-resistant","Plates & Sheets",{"$nulls":3},60,77,85,85,85,392,null,0,0,0,0,0,0,0,0,0,0,0,0,0,0,0,0]
["Manufacturing","011853881","PLATE METAL;16x1500x2500,STL, VRN400","PLATE, METALLIC; THICKNESS: 16 MM, WIDTH: 1500 MM, LENGTH: 2500 MM, PLATE MATERIAL: STEEL, MATERIAL GRADE: VRN400","PLATE","EA","VRN400","Carbon Steel Plates&Sheets","Carbon Steel_Plate&Sheet_SA  wear-resistant","Plates & Sheets",{"$nulls":3},50,64,75,75,75,339,null,0,0,0,0,0,0,0,0,0,0,0,0,0,0,0,0]
["Manufacturing","914400270","PLATE METAL;10 MM,WD:1.2 M,LG:2.4 M,STL","PLATE, METALLIC; THICKNESS: 10 MM, WIDTH: 1.2 M, LENGTH: 2.4 M, PLATE MATERIAL: STEEL, MATERIAL GRADE: TH400, SPECIAL FEATURES: ROQ-LAST","PLATE","EA","STEEL TH400","Carbon Steel Plates&Sheets","Carbon Steel_Plate&Sheet_SA  wear-resistant","Plates & Sheets",{"$nulls":3},38,38,38,38,38,190,null,{"$f":"+T67*N67","v":0},0,{"$f":"T67*1.06","v":0},{"$f":"(W67*O67)","v":0},0,{"$f":"W67*1.06","v":0},{"$f":"(+Z67)*P67","v":0},0,0,{"$f":"(AC67)*Q67","v":0},0,{"$f":"AC67*1.06","v":0},{"$f":"(+AF67)*R67","v":0},0,{"$f":"AG67+AD67+AA67+X67+U67","v":0},0]
["Manufacturing","011005056","PLATE METAL;10 MM,1200 MM,2400 MM","PLATE, METALLIC; THICKNESS: 10 MM, WIDTH: 1200 MM, LENGTH: 2400 MM; MATERIAL GRADE NEW: EN 10025 S460 QL; MATERIAL GRADE OLD: ROQ LAST TH400 OR ROQ LAST AD360 GENERAL: MATERIAL CERTIFICATE TO EN 10204 TYPE 3.1 TO BE SUPPLIED. NO RUST OR CORROSION ON THE S","PLATE","EA","EN 10025 S460","Carbon Steel Plates&Sheets","Structural steel","Plates & Sheets",{"$nulls":3},64,64,64,64,64,320,null,0,{"$f":"U68*1.15","v":0},0,0,{"$f":"X68*1.15","v":0},0,0,{"$f":"AA68*1.15","v":0},{"$f":"Z68*1.06","v":0},0,{"$f":"AD68*1.15","v":0},0,0,{"$f":"AG68*1.15","v":0},0,{"$f":"AI68*1.15","v":0}]
["Manufacturing","011010802","SHEET METAL;EN 10025 S355 JR+AR,STL,2 MM","SHEET, METALLIC; MATERIAL GRADE: EN 10025 S355 JR+AR, MATERIAL: STEEL, THICKNESS: 2 MM, WIDTH: 1225 MM, LENGTH: 2500 MM; MATERIAL GRADE OLD: SABS 1431 300WA; GENERAL: MATERIAL CERTIFICATE TO EN 10204 TYPE 3.1 TO BE SUPPLIED. NO RUST OR CORROSION ON THE SU","SHEET","EA","EN 10025 S355 JR+AR","Carbon Steel Plates&Sheets","Structural steel","Plates & Sheets",{"$nulls":3},5,5,5,5,5,25,null,0,0,0,0,0,0,0,0,0,0,0,0,0,0,0,0]
["Manufacturing","011853206","PLATE METAL;16 MM,1.2 M,2.5 M,STL","PLATE, METALLIC; THICKNESS: 16 MM, WIDTH: 1.2 M, LENGTH: 2.5 M, PLATE MATERIAL: STEEL, MATERIAL GRADE: HARDOX 400","PLATE","EA","HARDOX 400","Carbon Steel Plates&Sheets","Carbon Steel_Plate&Sheet_SA  wear-resistant","Plates & Sheets",{"$nulls":3},6,6,10,20,30,72,null,0,0,0,0,0,0,0,0,0,0,0,0,0,0,0,0]
["Manufacturing","011011060","SHEET 3mm METAL;EN 10025 GR S355","SHEET, METALLIC; MATERIAL GRADE: EN 10025 GRADE S355 JR+AR, MATERIAL: STEEL, THICKNESS: 3 MM, WIDTH: 1225 MM, LENGTH: 2450 MM; GENERAL: MATERIAL CERTIFICATE TO EN 10204 TYPE 3.1 TO BE SUPPLIED. NO RUST OR CORROSION ON THE SURFACE ALLOWED. SUITABLE FOR LAS","SHEET","EA","EN 10025 S355 JR+AR","Carbon Steel Plates&Sheets","Structural steel","Plates & Sheets",{"$nulls":3},1,0,1,1,1,4,null,0,0,0,0,0,0,0,0,0,0,0,0,0,0,0,0]
["Manufacturing","011015842","SHEET EXP MTL;FLATEX,2.4 M,1.2 M,STL","SHEET, EXPANDED METAL; TYPE: FLATEX, LENGTH: 2.4 M, WIDTH: 1.2 M, MATERIAL: STEEL, THICKNESS: 1.6 MM, MESH LENGTH: 30 MM, MESH WIDT H: 10 MM, MESH SHAPE STYLE: DIAMOND; REFERENCE NO: REF 358/6315F, MENTIS; STRAND WIDTH 3 MM; SPEC SABS 190 CERTIFICATE TO B","SHEET","EA","FLATEX 346","Carbon Steel Plates&Sheets","Mild steel floor plate","Plates & Sheets",{"$nulls":3},40,52,65,65,65,287,null,0,0,0,0,0,0,0,0,0,0,0,0,0,0,0,0]
["Manufacturing","011668847","PLATE METAL;12 MM,2050 MM,4250 MM","PLATE, METALLIC; THICKNESS: 12 MM, WIDTH: 2050 MM, LENGTH: 4250 MM, MATERIAL GRADE: EN 10025 S355 JR+AR; GENERAL: MATERIAL CERTIFICATE TO EN 10204 TYPE 3.1 TO BE SUPPLIED. NO RUST OR CORROSION ON THE SURFACE ALLOWED.","PLATE","EA","EN 10025 S355 JR+AR","Carbon Steel Plates&Sheets","Structural steel","Plates & Sheets",{"$nulls":3},113,70,115,147,86,531,null,0,0,0,0,0,0,0,0,0,0,0,0,0,0,0,0]
["Manufacturing","011005529","PLATE METAL;32 MM,1200 MM,2500 MM","PLATE, METALLIC; THICKNESS: 32 MM, WIDTH: 1200 MM, LENGTH: 2500 MM; MATERIAL GRADE NEW: EN 10025 S355 JR+AR MATERIAL GRADE OLD: SABS 1431 ZINC PLATED STEEL GENERAL: MATERIAL CERTIFICATE TO EN 10204 TYPE 3.1 TO BE SUPPLIED. NO RUST OR CORROSION ON THE SURF","PLATE","EA","EN 10025 S355 JR+AR","Carbon Steel Plates&Sheets","Structural steel","Plates & Sheets",{"$nulls":3},12,12,12,12,12,60,null,0,0,0,0,0,0,0,0,0,0,0,0,0,0,0,0]
["Manufacturing","011668846","PLATE METAL;12 MM,1550 MM,4000 MM","PLATE, METALLIC; THICKNESS: 12 MM, WIDTH: 1550 MM, LENGTH: 4000 MM, MATERIAL GRADE: EN 10025 S355 JR+AR; GENERAL: MATERIAL CERTIFICATE TO EN 10204 TYPE 3.1 TO BE SUPPLIED. NO RUST OR CORROSION ON THE SURFACE ALLOWED","PLATE","EA","EN 10025 S355 JR+AR","Carbon Steel Plates&Sheets","Structural steel","Plates & Sheets",{"$nulls":3},102,63,104,133,78,480,null,0,0,0,0,0,0,0,0,0,0,0,0,0,0,0,0]
["Manufacturing","011113634","PLATE METAL;10 MM,1500 MM,3000 MM","PLATE, METALLIC; THICKNESS: 10 MM, WIDTH: 1500 MM, LENGTH: 3000 MM; MATERIAL GRADE NEW: EN 10025 S355 JR+AR; GENERAL: MATERIAL CERTIFICATE TO EN 10204 TYPE 3.1 TO BE SUPPLIED. NO RUST OR CORROSION ON THE SURFACE ALLOWED","PLATE","EA","EN 10025 S355 JR+AR","Carbon Steel Plates&Sheets","Structural steel","Plates & Sheets",{"$nulls":3},134,83,137,175,102,631,null,0,0,0,0,0,0,0,0,0,0,0,0,0,0,0,0]
["Manufacturing","011011112","SHEET METAL 5mm;EN 10025 GR S355 JR+AR,","SHEET, METALLIC; MATERIAL GRADE: EN 10025 GRADE S355 JR+AR, MATERIAL: STEEL, THICKNESS: 5 MM, WIDTH: 1200 MM, LENGTH: 2500 MM; GENERAL: MATERIAL CERTIFICATE TO EN 10204 TYPE 3.1 TO BE SUPPLIED. NO RUST OR CORROSION ON THE SURFACE ALLOWED. SUITABLE FOR LAS","SHEET","EA","EN 10025 S355 JR+AR","Carbon Steel Plates&Sheets","Structural steel","Plates & Sheets",{"$nulls":3},2,2,2,2,2,10,null,0,0,0,0,0,0,0,0,0,0,0,0,0,0,0,0]
["Manufacturing","011671581","PLATE METAL;8 MM,1200 MM,2400 MM","PLATE, METALLIC; THICKNESS: 8 MM, WIDTH: 1200 MM, LENGTH: 2400 MM, MATERIAL GRADE: EN 10025 S355 J2C+N; GENERAL: MATERIAL CERTIFICATE TO EN 10204 TYPE 3.1 TO BE SUPPLIED. NO RUST OR CORROSION ON THE SURFACE ALLOWED. CAST FORM TO BE DELIVERED WITH MATERIAL","PLATE","EA"," EN 10025  S355 J2C+N","Carbon Steel Plates&Sheets","Structural steel","Plates & Sheets",{"$nulls":3},10,4,0,10,4,28,null,0,0,0,0,0,0,0,0,0,0,0,0,0,0,0,0]
["Manufacturing","011671583","PLATE METAL;30 MM,1500 MM,6800 MM,STL","PLATE, METALLIC; THICKNESS: 30 MM, WIDTH: 1500 MM, LENGTH: 6800 MM, PLATE MATERIAL: STEEL, MATERIAL GRADE: EN 10025 GRADE S355 J2+N/ EN 10025 S355 J2C+N; GENERAL: MATERIAL CERTIFICATE TO EN 10204 TYPE 3.1 TO BE SUPPLIED. NO RUST OR CORROSION ON THE SURFAC","PLATE","EA"," EN 10025  S355 J2C+N","Carbon Steel Plates&Sheets","Structural steel","Plates & Sheets",{"$nulls":3},123,120,120,123,120,606,null,0,0,0,0,0,0,0,0,0,0,0,0,0,0,0,0]
["Manufacturing","011005388","PLATE METAL;20 MM,1200 MM,2500 MM","PLATE, METALLIC; THICKNESS: 20 MM, WIDTH: 1200 MM, LENGTH: 2500 MM; MATERIAL GRADE NEW: EN 10025 S355 JR+AR MATERIAL GRADE OLD: EN 10025 / SANS 50025 S355 JR+AR OR EN 10028 P355NL1 GENERAL: MATERIAL CERTIFICATE TO EN 10204 TYPE 3.1 TO BE SUPPLIED. NO RUST","PLATE","EA","EN 10025 S355 JR+AR","Carbon Steel Plates&Sheets","Structural steel","Plates & Sheets",{"$nulls":3},91,56,92,118,69,426,null,0,0,0,0,0,0,0,0,0,0,0,0,0,0,0,0]
["Manufacturing","011005465","PLATE METAL;25 MM,1200 MM,2500 MM","PLATE, METALLIC; THICKNESS: 25 MM, WIDTH: 1200 MM, LENGTH: 2500 MM, MATERIAL GRADE NEW: EN 10025 S355 JR+AR; MATERIAL GRADE OLD: SANS 50025/EN 10025 GRADE S355 JR+AR OR EN 10028 P355NL1; GENERAL: MATERIAL CERTIFICTE TO EN 10204 TYPE 3.1 TO BE SUPPLIED; NO","PLATE","EA","EN 10025 S355 JR+AR","Carbon Steel Plates&Sheets","Structural steel","Plates & Sheets",{"$nulls":3},562,562,562,562,562,2810,null,0,0,0,0,0,0,0,0,0,0,0,0,0,0,0,0]
["Manufacturing","311029226","PLATE METAL;50 MM,1200 MM,2500 MM","PLATE, METALLIC; THICKNESS: 50 MM, WIDTH: 1200 MM, LENGTH: 2500 MM, MATERIAL GRADE: EN 10025 GRADE S355 JR+AR; GENERAL: MATERIAL CERTIFICATE TO EN 10204 TYPE 3.1 TO BE SUPPLIED. NO RUST OR CORROSION ON THE SURFACE ALLOWED","PLATE","EA","EN 10025 S355 JR+AR","Carbon Steel Plates&Sheets","Structural steel","Plates & Sheets",{"$nulls":3},12,12,12,12,12,60,null,0,0,0,0,0,0,0,0,0,0,0,0,0,0,0,0]
["Manufacturing","011818335","PLATE METAL;3 MM,1225 MM,2450 MM","PLATE, METALLIC; THICKNESS: 3 MM, WIDTH: 1225 MM, LENGTH: 2450 MM, MATERIAL GRADE: EN 10025 GRADE S355 JR+AR; GENERAL: MATERIAL CERTIFICATE TO EN 10204 TYPE 3.1 TO BE SUPPLIED. NO RUST OR CORROSION ON THE SURFACE ALLOWED","PLATE","EA","EN 10025 S355 JR+AR","Carbon Steel Plates&Sheets","Structural steel","Plates & Sheets",{"$nulls":3},639,639,639,639,639,3195,null,0,0,0,0,0,0,0,0,0,0,0,0,0,0,0,0]
["Manufacturing","311109966","PLATE METAL;6 MM,1500 MM,3000 MM","PLATE, METALLIC; THICKNESS: 6 MM, WIDTH: 1500 MM, LENGTH: 3000 MM; MATERIAL GRADE NEW:  EN 10025 S355 JR+AR MATERIAL GRADE OLD: SABS 1431 GR 300WA; GENERAL: MATERIAL CERTIFICATE TO EN 10204 TYPE 3.1 TO BE SUPPLIED. NO RUST OR CORROSION ON THE SURFACE ALLO","PLATE","EA","EN 10025 S355 JR+AR","Carbon Steel Plates&Sheets","Structural steel","Plates & Sheets",{"$nulls":3},64,64,64,64,64,320,null,0,0,0,0,0,0,0,0,0,0,0,0,0,0,0,0]
["Manufacturing","011005162","PLATE METAL;8 MM,1200 MM,2500 MM","PLATE, METALLIC; THICKNESS: 8 MM, WIDTH: 1200 MM, LENGTH: 2500 MM; MATERIAL GRADE NEW: EN 10025 S355 JR+AR; MATERIAL GRADE OLD: EN 10025 / SANS 50025 S355 JR+AR OR EN 10028 P355NL1; GENERAL: MATERIAL CERTIFICATE TO EN 10204 TYPE 3.1 TO BE SUPPLIED. NO RUS","PLATE","EA","EN 10025 S355 JR+AR","Carbon Steel Plates&Sheets","Structural steel","Plates & Sheets",{"$nulls":3},74,70,112,130,132,518,null,0,0,0,0,0,0,0,0,0,0,0,0,0,0,0,0]
["Manufacturing","311111419","PLATE METAL;5 MM,1200 MM,2500 MM","PLATE, METALLIC; THICKNESS: 5 MM, WIDTH: 1200 MM, LENGTH: 2500 MM, MATERIAL GRADE: EN 10025 GRADE S355 JR+AR; GENERAL: MATERIAL CERTIFICATE TO EN 10204 TYPE 3.1 TO BE SUPPLIED. NO RUST OR CORROSION ON THE SURFACE ALLOWED","PLATE","EA","EN 10025 S355 JR+AR","Carbon Steel Plates&Sheets","Structural steel","Plates & Sheets",{"$nulls":3},12,12,12,12,12,60,null,0,0,0,0,0,0,0,0,0,0,0,0,0,0,0,0]
["Manufacturing","011008837","PLATE METAL;6 MM,1500 MM,3000 MM,STL","PLATE, METALLIC; THICKNESS: 6 MM, WIDTH: 1500 MM, LENGTH: 3000 MM, PLATE MATERIAL: STEEL; MATERIAL GRADE NEW: EN 10025 S460 QL MATERIAL GRADE OLD: ROQ LAST TH400 OR ROQ LAST AD360 GENERAL: MATERIAL CERTIFICATE TO EN 10204 TYPE 3.1 TO BE SUPPLIED. NO RUST","PLATE","EA","EN 10025 S460","Carbon Steel Plates&Sheets","Structural steel","Plates & Sheets",{"$nulls":3},4,4,4,4,4,20,null,0,0,0,0,0,0,0,0,0,0,0,0,0,0,0,0]
["Manufacturing","011859436","PLATE METAL;10 MM,1200 MM,2500 MM,VRN500","PLATE, METALLIC; THICKNESS: 10 MM, WIDTH: 1200 MM, LENGTH: 2500 MM, PLATE MATERIAL: STEEL, MATERIAL GRADE: VRN500 ALTERNATIVE STEEL GRADE: V500, NM500 OR SIMILAR ALL MATERIALS TO BE DELIVERED WITH MATERIAL CERTIFICATES!","PLATE","EA","VRN500","Carbon Steel Plates&Sheets","Carbon Steel_Plate&Sheet_SA  wear-resistant","Plates & Sheets",{"$nulls":3},65,67,100,100,110,442,null,0,0,0,0,0,0,0,0,0,0,0,0,0,0,0,0]
["Manufacturing","011853205","PLATE METAL;12 MM,1.2 M,2.5 M,STL","PLATE, METALLIC; THICKNESS: 12 MM, WIDTH: 1.2 M, LENGTH: 2.5 M, PLATE MATERIAL: STEEL, MATERIAL GRADE: HARDOX 400","PLATE","EA","HARDOX 400","Carbon Steel Plates&Sheets","Carbon Steel_Plate&Sheet_SA  wear-resistant","Plates & Sheets",{"$nulls":3},15,15,35,40,45,150,null,0,0,0,0,0,0,0,0,0,0,0,0,0,0,0,0]
["Manufacturing","011855044","PLATE METAL;8 MM,1.5 M,3 M,STL;HARDOX","PLATE, METALLIC; THICKNESS: 8 MM, WIDTH: 1.5 M, LENGTH: 3 M, PLATE MATERIAL: STEEL, MATERIAL GRADE: HARDOX VRN 400 ALTERNATIVE STEEL GRADE: TH400, V400 OR SIMILAR ALL MATERIALS TO BE DELIVERED WITH MATERIAL CERTIFICATES!","PLATE","EA","VRN400","Carbon Steel Plates&Sheets","Carbon Steel_Plate&Sheet_SA  wear-resistant","Plates & Sheets",{"$nulls":3},85,118,120,110,110,543,null,0,0,0,0,0,0,0,0,0,0,0,0,0,0,0,0]
["Manufacturing","011854231","PLATE METAL;10 MM,1.5 M,3 M,STL,VRN400","PLATE, METALLIC; THICKNESS: 10 MM, WIDTH: 1.5 M, LENGTH: 3 M, PLATE MATERIAL: STEEL, MATERIAL GRADE: VRN400","PLATE","EA","VRN400","Carbon Steel Plates&Sheets","Carbon Steel_Plate&Sheet_SA  wear-resistant","Plates & Sheets",{"$nulls":3},20,10,10,20,10,70,null,0,0,0,0,0,0,0,0,0,0,0,0,0,0,0,0]
["Manufacturing","311009552","PLATE METAL;30 MM,1200 MM,2500 MM","PLATE, METALLIC; THICKNESS: 30 MM, WIDTH: 1200 MM, LENGTH: 2500 MM, MATERIAL GRADE: EN 10025 GRADE S355 JR; GENERAL: MATERIAL CERTIFICATE TO EN 10204 TYPE 3.1 TO BE SUPPLIED. NO RUST OR CORROSION ON THE SURFACE ALLOWED. STANDARD SABS 1431","PLATE","EA"," BS 970 070M20","Carbon Steel Plates&Sheets","Low carbon mild steel","Plates & Sheets",{"$nulls":3},65,65,65,65,65,325,null,0,0,0,0,0,0,0,0,0,0,0,0,0,0,0,0]
["Manufacturing","011818336","PLATE METAL;3 MM,1485 MM,3200 MM","PLATE, METALLIC; THICKNESS: 3 MM, WIDTH: 1485 MM, LENGTH: 3200 MM, MATERIAL GRADE: EN 10025 GRADE S355 JR+AR; GENERAL: MATERIAL CERTIFICATE TO EN 10204 TYPE 3.1 TO BE SUPPLIED. NO RUST OR CORROSION ON THE SURFACE ALLOWED.","PLATE","EA","EN 10025 S355 JR+AR","Carbon Steel Plates&Sheets","Structural steel","Plates & Sheets",{"$nulls":3},102,102,102,102,102,510,null,0,0,0,0,0,0,0,0,0,0,0,0,0,0,0,0]
["Maritime","011671333","PLATE METAL;6 MM,2.4 M,3 M,STL","PLATE, METALLIC; THICKNESS: 6 MM, WIDTH: 2.4 M, LENGTH: 3 M, PLATE MATERIAL: STEEL, MATERIAL GRADE: VRN 400 OR HARDOX 400 OR QARD400; CERTIFICATE TO BE SENT WITH MATERIAL; MATERIAL MUST BE SUPPLIED FLAT STRAPPED TO A PALLET; THE MATERIAL MUST BE RUST FREE","PLATE","EA","VRN400","Carbon Steel Plates&Sheets","Carbon Steel_Plate&Sheet_SA  wear-resistant","Plates & Sheets",{"$nulls":3},45,45,45,45,45,225,null,0,0,0,0,0,0,0,0,0,0,0,0,0,0,0,0]
["Manufacturing","311200249","SHEET METAL;EN 10025 S355 JR+AR,STL,4 MM","SHEET, METALLIC; MATERIAL GRADE: EN 10025 S355 JR+AR, MATERIAL: STEEL, THICKNESS: 4 MM, WIDTH: 1225 MM, LENGTH: 2450 MM; GENERAL: MATERIAL CERTIFICATE TO EN 10204 TYPE 3.1 TO BE SUPPLIED. NO RUST OR CORROSION ON THE SURFACE ALLOWED","SHEET","EA","EN 10025 S355 JR+AR","Carbon Steel Plates&Sheets","Structural steel","Plates & Sheets",{"$nulls":3},41,41,41,41,41,205,null,0,0,0,0,0,0,0,0,0,0,0,0,0,0,0,0]
["Manufacturing","011820211","PLATE METAL;12 MM,3000 MM,8500 MM,STL","PLATE, METALLIC; THICKNESS: 12 MM, WIDTH: 3000 MM, LENGTH: 8500 MM, PLATE MATERIAL: STEEL, MATERIAL GRADE: ASTM A516 GRADE 70 N; 1. HEAT TREATMENT: NORMALISED 2. SPECIAL FEATURES: VACUUM TREATMENT; 3. CHARPY V-NOTCH IMPACT TEST. (CVN @ -46 DEGREES CELSIUS","PLATE","EA"," ASTM A516 GRADE 70","Carbon Steel Plates&Sheets","Carbon Steel","Plates & Sheets",{"$nulls":3},300,0,0,0,0,300,null,0,0,0,0,0,0,0,0,0,0,0,0,0,0,0,0]
["Manufacturing","011820212","PLATE METAL;12 MM,3350 MM,8500 MM,STL","PLATE, METALLIC; THICKNESS: 12 MM, WIDTH: 3350 MM, LENGTH: 8500 MM, PLATE MATERIAL: STEEL, MATERIAL GRADE: ASTM A516 GRADE 70 N; 1. HEAT TREATMENT: NORMALISED 2. SPECIAL FEATURES: VACUUM TREATMENT; 3. CHARPY V-NOTCH IMPACT TEST. (CVN @ -46 DEGREES CELSIUS","PLATE","EA"," ASTM A516 GRADE 70","Carbon Steel Plates&Sheets","Carbon Steel","Plates & Sheets",{"$nulls":3},200,0,0,0,0,200,null,0,0,0,0,0,0,0,0,0,0,0,0,0,0,0,0]
["Manufacturing","011671586","PLATE METAL;12 MM,1200 MM,1800 MM","PLATE, METALLIC; THICKNESS: 12 MM, WIDTH: 1200 MM, LENGTH: 1800 MM, MATERIAL GRADE: EN 10025 S355 J2C+N; GENERAL: MATERIAL CERTIFICATE TO EN 10204 TYPE 3.1 TO BE SUPPLIED. NO RUST OR CORROSION ON THE SURFACE ALLOWED. CAST FORM TO BE DELIVERED WITH MATERIA","PLATE","EA"," EN 10025  S355 J2C+N","Carbon Steel Plates&Sheets","Structural steel","Plates & Sheets",{"$nulls":3},431,300,100,431,300,1562,null,0,0,0,0,0,0,0,0,0,0,0,0,0,0,0,0]
["Manufacturing","011671590","PLATE METAL;12 MM,2500 MM,6000 MM,STL","PLATE, METALLIC; THICKNESS: 12 MM, WIDTH: 2500 MM, LENGTH: 6000 MM, PLATE MATERIAL: STEEL, MATERIAL GRADE: EN 10025 S355 J2C+N; GENERAL: MATERIAL CERTIFICATE TO EN 10204 TYPE 3.1 TO BE SUPPLIED. NO RUST OR CORROSION ON THE SURFACE ALLOWED. SPECIAL FEATURE","PLATE","EA"," EN 10025  S355 J2C+N","Carbon Steel Plates&Sheets","Structural steel","Plates & Sheets",{"$nulls":3},20,20,8,20,20,88,null,{"$f":"+T99*N99","v":0},0,{"$f":"T99*1.06","v":0},{"$f":"(W99*O99)","v":0},0,{"$f":"W99*1.06","v":0},{"$f":"(+Z99)*P99","v":0},0,0,{"$f":"(AC99)*Q99","v":0},0,{"$f":"AC99*1.06","v":0},{"$f":"(+AF99)*R99","v":0},0,{"$f":"AG99+AD99+AA99+X99+U99","v":0},0]
["Manufacturing","011671584","PLATE METAL;25 MM,1200 MM,2200 MM,STL","PLATE, METALLIC; THICKNESS: 25 MM, WIDTH: 1200 MM, LENGTH: 2200 MM, PLATE MATERIAL: STEEL, MATERIAL GRADE: EN 10025 GRADE S355 J2+N /EN 10025 S355 J2C+N; GENERAL: MATERIAL CERTIFICATE TO EN 10204 TYPE 3.1 TO BE SUPPLIED. NO RUST OR CORROSION ON THE SURFAC","PLATE","EA"," EN 10025  S355 J2C+N","Carbon Steel Plates&Sheets","Structural steel","Plates & Sheets",{"$nulls":3},100,100,4,100,100,404,null,0,0,0,0,0,0,0,0,0,0,0,0,0,0,0,0]
["Manufacturing","011671577","PLATE METAL;20 MM,1200 MM,2400 MM","PLATE, METALLIC; THICKNESS: 20 MM, WIDTH: 1200 MM, LENGTH: 2400 MM, MATERIAL GRADE: EN 10025 GRADE S355 J2C+N, SPECIAL FEATURES: CAST FORM TO BE DELIVERED WITH MATERIAL; GENERAL: MATERIAL CERTIFICATE TO EN 10204 TYPE 3.1 TO BE SUPPLIED. NO RUST OR CORROSI","PLATE","EA"," EN 10025  S355 J2C+N","Carbon Steel Plates&Sheets","Structural steel","Plates & Sheets",{"$nulls":3},100,100,72,100,100,472,null,0,0,0,0,0,0,0,0,0,0,0,0,0,0,0,0]
["Manufacturing","011671580","PLATE METAL;60 MM,1200 MM,2400 MM","PLATE, METALLIC; THICKNESS: 60 MM, WIDTH: 1200 MM, LENGTH: 2400 MM, MATERIAL GRADE: EN 10025 GRADE S355 J2+N; GENERAL: MATERIAL CERTIFICATE TO EN 10204 TYPE 3.1 TO BE SUPPLIED. NO RUST OR CORROSION ON THE SURFACE ALLOWED. CAST FORM TO BE DELIVERED WITH MA","PLATE","EA","EN 10025 S355 J2+N","Carbon Steel Plates&Sheets","Structural steel","Plates & Sheets",{"$nulls":3},50,40,28,50,40,208,null,0,0,0,0,0,0,0,0,0,0,0,0,0,0,0,0]
["Manufacturing","011671578","PLATE METAL;40 MM,1200 MM,2400 MM,STL","PLATE, METALLIC; THICKNESS: 40 MM, WIDTH: 1200 MM, LENGTH: 2400 MM, PLATE MATERIAL: STEEL, MATERIAL GRADE: EN 10025 GRADE S355 J2+N /EN 10025 S355 J2C+N, SPECIAL FEATURES: CAST FORM TO BE DELIVERED WITH MATERIAL; GENERAL: MATERIAL CERTIFICATE TO EN 10204","PLATE","EA"," EN 10025  S355 J2C+N","Carbon Steel Plates&Sheets","Structural steel","Plates & Sheets",{"$nulls":3},100,100,34,100,100,434,null,0,0,0,0,0,0,0,0,0,0,0,0,0,0,0,0]
["Manufacturing","311200946","PLATE METAL;10 MM,1500 MM,3000 MM","PLATE, METALLIC; THICKNESS: 10 MM, WIDTH: 1500 MM, LENGTH: 3000 MM, MATERIAL GRADE: EN 10025 S355 JR+AR; GENERAL: MATERIAL CERTIFICATE TO EN 10204 TYPE 3.1 TO BE SUPPLIED. NO RUST OR CORROSION ON THE SURFACE ALLOWED","PLATE","EA","EN 10025 S355 JR+AR","Carbon Steel Plates&Sheets","Structural steel","Plates & Sheets",{"$nulls":3},3,3,3,3,3,15,null,0,0,0,0,0,0,0,0,0,0,0,0,0,0,0,0]
["Project Wagons 1000","311200946","PLATE METAL;10 MM,1500 MM,3000 MM","PLATE, METALLIC; THICKNESS: 10 MM, WIDTH: 1500 MM, LENGTH: 3000 MM, MATERIAL GRADE: EN 10025 S355 JR+AR; GENERAL: MATERIAL CERTIFICATE TO EN 10204 TYPE 3.1 TO BE SUPPLIED. NO RUST OR CORROSION ON THE SURFACE ALLOWED","PLATE","EA","EN 10025 S355 JR+AR","Carbon Steel Plates&Sheets","Structural steel","Plates & Sheets",{"$nulls":3},44,44,{"$nulls":3},88,null,0,0,0,0,0,0,0,0,0,0,0,0,0,0,0,0]
["Manufacturing","011671589","PLATE METAL;6 MM,1200 MM,2500 MM,STL","PLATE, METALLIC; THICKNESS: 6 MM, WIDTH: 1200 MM, LENGTH: 2500 MM, PLATE MATERIAL: STEEL, MATERIAL GRADE: SANS 50025/EN 10025 GRADE S355 J2C+N, SPECIAL FEATURES: CAST FORM TO BE DELIVERED WITH MATERIAL; GENERAL: MATERIAL CERTIFICATE TO EN 10204 TYPE 3.1 T","PLATE","EA"," EN 10025  S355 J2C+N","Carbon Steel Plates&Sheets","Structural steel","Plates & Sheets",{"$nulls":3},15,15,5,15,15,65,null,0,0,0,0,0,0,0,0,0,0,0,0,0,0,0,0]
["Manufacturing","011862228","PLATE;RIO CARB CR700,LINER,STL CR2C3","PLATE; TYPE: RIO CARB CR700, APPLICATION: LINER, MATERIAL: STEEL CHROMIUM CARBIDE, DIMENSIONS: WD 1500 X LG 3000 X THK 16 MM; ALTER NATIVE STEEL GRADE: HARDPLATE 100S OR SIMILAR; \nALL MATERIALS TO BE DELIVERED WITH MATERIAL CERTIFICATES","PLATE","EA","R-C700","Carbon Steel Plates&Sheets","Carbon Steel_Plate&Sheet_SA  wear-resistant","Plates & Sheets",{"$nulls":3},15,15,30,40,50,150,null,0,0,0,0,0,0,0,0,0,0,0,0,0,0,0,0]
["Manufacturing","011818339","PLATE METAL;5 MM,1200 MM,2500 MM","PLATE, METALLIC; THICKNESS: 5 MM, WIDTH: 1200 MM, LENGTH: 2500 MM, MATERIAL GRADE: EN 10025 GRADE S355 JR+AR; GENERAL: MATERIAL CERTIFICATE TO EN 10204 TYPE 3.1 TO BE SUPPLIED. NO RUST OR CORROSION ON THE SURFACE ALLOWED","PLATE","EA","EN 10025 S355 JR+AR","Carbon Steel Plates&Sheets","Structural steel","Plates & Sheets",{"$nulls":3},37,37,37,37,37,185,null,0,0,0,0,0,0,0,0,0,0,0,0,0,0,0,0]
["Manufacturing","011005339","PLATE METAL;16 MM,1200 MM,2500 MM","PLATE, METALLIC; THICKNESS: 16 MM, WIDTH: 1200 MM, LENGTH: 2500 MM; MATERIAL GRADE NEW: EN 10025 S355 JR+AR; MATERIAL GRADE OLD: EN 10025 / SANS 50025 S355 JR+AR OR EN 10028 P355NL1; GENERAL: MATERIAL CERTIFICATE TO EN 10204 TYPE 3.1 TO BE SUPPLIED. NO RU","PLATE","EA","EN 10025 S355 JR+AR","Carbon Steel Plates&Sheets","Structural steel","Plates & Sheets",{"$nulls":3},1886,1192,2212,1560,1666,8516,null,0,0,0,0,0,0,0,0,0,0,0,0,0,0,0,0]
["Manufacturing","611600053","PLATE METAL;6 MM,1200 MM,2500 MM","PLATE, METALLIC; THICKNESS: 6 MM, WIDTH: 1200 MM, LENGTH: 2500 MM, MATERIAL GRADE: EN 10025 GRADE S355 JR+AR; GENERAL: MATERIAL CERTIFICATE TO EN 10204 TYPE 3.1 TO BE SUPPLIED. NO RUST OR CORROSION ON THE SURFACE ALLOWED","PLATE","EA","EN 10025 S355 JR+AR","Carbon Steel Plates&Sheets","Structural steel","Plates & Sheets",{"$nulls":3},2,2,2,2,2,10,null,0,0,0,0,0,0,0,0,0,0,0,0,0,0,0,0]
["Manufacturing","011005251","PLATE METAL;12 MM,1200 MM,2500 MM,STL","PLATE, METALLIC; THICKNESS: 12 MM, WIDTH: 1200 MM, LENGTH: 2500 MM, PLATE MATERIAL: STEEL; MATERIAL GRADE NEW: EN 10025 S355 JR+AR; MATERIAL GRADE OLD: SABS 1431 350 WA OR SABS 1431 WR50B1 OR COR-TEN; GENERAL: MATERIAL CERTIFICATE TO EN 10204 TYPE 3.1 TO","PLATE","EA","EN 10025 S355 JR+AR","Carbon Steel Plates&Sheets","Structural steel","Plates & Sheets",{"$nulls":3},387,153,387,387,387,1701,null,0,0,0,0,0,0,0,0,0,0,0,0,0,0,0,0]
["Manufacturing","011860022","PLATE METAL;16 MM,1200 MM,2500 MM,STL","PLATE, METALLIC; THICKNESS: 16 MM, WIDTH: 1200 MM, LENGTH: 2500 MM, PLATE MATERIAL: STEEL, MATERIAL GRADE: VRN 500 ALTERNATIVE STEEL GRADE: V500, NM500 OR SIMILAR ALL MATERIALS TO BE DELIVERED WITH MATERIAL CERTIFICATES!","PLATE","EA","VRN500","Carbon Steel Plates&Sheets","Carbon Steel_Plate&Sheet_SA  wear-resistant","Plates & Sheets",{"$nulls":3},24,24,24,24,24,120,null,0,0,0,0,0,0,0,0,0,0,0,0,0,0,0,0]
["Manufacturing","011859075","PLATE METAL;12 MM,1500 MM,2500 MM,STL","PLATE, METALLIC; THICKNESS: 12 MM, WIDTH: 1500 MM, LENGTH: 2500 MM, PLATE MATERIAL: STEEL, MATERIAL GRADE: VRN500 ALTERNATIVE STEEL GRADE: V500, NM500 OR SIMILAR ALL MATERIALS TO BE DELIVERED WITH MATERIAL CERTIFICATES!","PLATE","EA","VRN500","Carbon Steel Plates&Sheets","Carbon Steel_Plate&Sheet_SA  wear-resistant","Plates & Sheets",{"$nulls":3},37,51,80,80,80,328,null,0,0,0,0,0,0,0,0,0,0,0,0,0,0,0,0]
["Manufacturing","011853765","PLATE METAL;16 MM,1.2 M,2.5 M,STL,R-C700","PLATE, METALLIC; THICKNESS: 16 MM, WIDTH: 1.2 M, LENGTH: 2.5 M, PLATE MATERIAL: STEEL, MATERIAL GRADE: R-C700; ALTERNATIVE STEEL GR ADE: HARDPLATE 100S OR SIMILAR; \nALL MATERIALS TO BE DELIVERED WITH MATERIAL CERTIFICATES","PLATE","EA","R-C700","Carbon Steel Plates&Sheets","Carbon Steel_Plate&Sheet_SA  wear-resistant","Plates & Sheets",{"$nulls":3},80,126,115,115,115,551,null,0,0,0,0,0,0,0,0,0,0,0,0,0,0,0,0]
["Manufacturing","711050242","PLATE METAL;RAW,12 MM,1200 MM,2500 MM","PLATE, METALLIC; TYPE: RAW, THICKNESS: 12 MM, WIDTH: 1200 MM, LENGTH: 2500 MM; MATERIAL GRADE NEW: ASTM A516 GR 70 MATERIAL GRADE OLD: ASTM A516 GRADE 70 OR BS 1501-224 GRADE 490; GENERAL: MATERIAL CERTIFICATE TO EN 10204 TYPE 3.1 TO BE SUPPLIED. NO RUST","PLATE","EA"," ASTM A516 GRADE 70","Carbon Steel Plates&Sheets","Carbon Steel","Plates & Sheets",{"$nulls":3},7,7,7,7,7,35,null,0,0,0,0,0,0,0,0,0,0,0,0,0,0,0,0]
["Manufacturing","011859410","PLATE METAL;50 MM,1200 MM,2500 MM,STL","PLATE, METALLIC; THICKNESS: 50 MM, WIDTH: 1200 MM, LENGTH: 2500 MM, PLATE MATERIAL: STEEL, MATERIAL GRADE: HARDOX 500/VRN 500; CERTIFICATE TO BE SENT WITH MATERIAL; MATERIAL MUST BE SUPPLIED FLAT STRAPPED TO A PALLET; THE MATERIAL MUST BE RUST FREE; SUITA","PLATE","EA","HARDOX 500/VRN 500","Carbon Steel Plates&Sheets","Carbon Steel_Plate&Sheet_SA  wear-resistant","Plates & Sheets",{"$nulls":3},20,26,30,30,30,136,null,0,0,0,0,0,0,0,0,0,0,0,0,0,0,0,0]
["Manufacturing","011670554","PLATE METAL;10 MM,1.2 M,2.5 M,STL,VRN400","PLATE, METALLIC; THICKNESS: 10 MM, WIDTH: 1.2 M, LENGTH: 2.5 M, PLATE MATERIAL: STEEL, MATERIAL GRADE: VRN400; RESISTANT\nALTERNATIV E STEEL GRADE: TH400, V400, NM400 OR SIMILAR;\nALL MATERIALS TO BE DELIVERED WITH MATERIAL CERTIFICATES","PLATE","EA","HARDOX 400","Carbon Steel Plates&Sheets","Carbon Steel_Plate&Sheet_SA  wear-resistant","Plates & Sheets",{"$nulls":3},15,15,20,30,30,110,null,0,0,0,0,0,0,0,0,0,0,0,0,0,0,0,0]
["Manufacturing","11005198","PLATE METAL;10 MM,1200 MM,2500 MM","PLATE, METALLIC; THICKNESS: 10 MM, WIDTH: 1200 MM, LENGTH: 2500 MM; DRAWING NO: CME 9/LATEST, LA; SANS 50025 GR.S355JR CERTIFICATE TO BE SENT WHEN DELIVERING MATERIAL; GENERAL: MATERIAL CERTIFICATE TO EN 10204 TYPE 3.1 TO BE SUPPLIED. NO RUST OR CORROSION","PLATE","EA","EN 10025 S355 JR+AR","Carbon Steel Plates&Sheets","Structural steel","Plates & Sheets",{"$nulls":3},681,496,896,479,526,3078,null,0,0,0,0,0,0,0,0,0,0,0,0,0,0,0,0]
["Manufacturing","311009104","PLATE METAL;12 MM,1500 MM,3000 MM","PLATE, METALLIC; THICKNESS: 12 MM, WIDTH: 1500 MM, LENGTH: 3000 MM, MATERIAL GRADE: EN 10025 S355 JR+AR; GENERAL: MATERIAL CERTIFICATE TO EN 10204 TYPE 3.1 TO BE SUPPLIED. NO RUST OR CORROSION ON THE SURFACE ALLOWED.","PLATE","EA","EN 10025 S355 JR+AR","Carbon Steel Plates&Sheets","Structural steel","Plates & Sheets",{"$nulls":3},228,141,229,247,213,1058,null,0,0,0,0,0,0,0,0,0,0,0,0,0,0,0,0]
["Manufacturing","711050234","PLATE METAL;4 MM,1200 MM,2500 MM","PLATE, METALLIC; THICKNESS: 4 MM, WIDTH: 1200 MM, LENGTH: 2500 MM, MATERIAL GRADE: EN 10025 GRADE S355 JR+AR; GENERAL: MATERIAL CERTIFICATE TO EN 10204 TYPE 3.1 TO BE SUPPLIED. NO RUST OR CORROSION ON THE SURFACE ALLOWED","PLATE","EA","EN 10025 S355 JR+AR","Carbon Steel Plates&Sheets","Structural steel","Plates & Sheets",{"$nulls":3},1,1,1,1,1,5,null,0,0,0,0,0,0,0,0,0,0,0,0,0,0,0,0]
["Manufacturing","011011298","PLATE METAL;6 MM,1200 MM,2500 MM,STL","PLATE, METALLIC; THICKNESS: 6 MM, WIDTH: 1200 MM, LENGTH: 2500 MM, PLATE MATERIAL: STEEL, MATERIAL GRADE: SANS 50025 S355 JR+AR; GE NERAL: MATERIAL CERTIFICATE TO EN 10204 TYPE 3.1 TO BE SUPPLIED. NO RUST OR CORROSION ON THE SURFACE ALLOWED. FOR PLANT 110","PLATE","EA","EN 10025 S355 JR+AR","Carbon Steel Plates&Sheets","Structural steel","Plates & Sheets",{"$nulls":3},124,76,126,161,94,581,null,0,0,0,0,0,0,0,0,0,0,0,0,0,0,0,0]
["Project Wagons 1000","011010737","SHEET METAL;STL,1.6 MM,1225 MM,2450 MM","SHEET, METALLIC; MATERIAL GRADE: EN 10130 DC04, OLD SABS 4360 CR 210, MATERIAL: STEEL, THICKNESS: 1.6 MM, WIDTH: 1225 MM, LENGTH: 2450 MM; GENERAL: MATERIAL CERTIFICATE TO EN 10204 TYPE 3.1 TO BE SUPPLIED. NO RUST OR CORROSION ON THE SURFACE ALLOWED. MATE","SHEET","EA","EN 10130 DC04","Carbon Steel Plates&Sheets","Low carbon mild steel","Plates & Sheets",{"$nulls":3},8,8,{"$nulls":3},16,null,0,0,0,0,0,0,0,0,0,0,0,0,0,0,0,0]
["Project Wagons 1000","011015829","PLATE METAL;8 MM,1800 MM,4000 MM","PLATE, METALLIC; THICKNESS: 8 MM, WIDTH: 1800 MM, LENGTH: 4000 MM; MATERIAL GRADE NEW: EN 10025 S460 QL MATERIAL GRADE OLD: ROQ LAST TH400; GENERAL: MATERIAL CERTIFICATE TO EN 10204 TYPE 3.1 TO BE SUPPLIED. NO RUST OR CORROSION ON THE SURFACE ALLOWED","PLATE","EA","EN 10025 S460","Carbon Steel Plates&Sheets","Structural Steel","Plates & Sheets",{"$nulls":3},5,5,{"$nulls":3},10,null,0,0,0,0,0,0,0,0,0,0,0,0,0,0,0,0]
["Manufacturing","011671585","PLATE METAL;10 MM,1200 MM,1800 MM","PLATE, METALLIC; THICKNESS: 10 MM, WIDTH: 1200 MM, LENGTH: 1800 MM, MATERIAL GRADE: EN 10025 S355 J2C+N; GENERAL: MATERIAL CERTIFICATE TO EN 10204 TYPE 3.1 TO BE SUPPLIED. NO RUST OR CORROSION ON THE SURFACE ALLOWED. CAST FORM TO BE DELIVERED WITH MATERIA","PLATE","EA"," EN 10025  S355 J2C+N","Carbon Steel Plates&Sheets","Structural steel","Plates & Sheets",{"$nulls":3},200,200,24,200,200,824,null,0,0,0,0,0,0,0,0,0,0,0,0,0,0,0,0]
["Manufacturing","011822216","PLATE FLR METAL;VASTRAP,STL,4.5 MM,1.2 M","PLATE, FLOOR, METALLIC; TYPE: VASTRAP, PLATE MATERIAL: STEEL, PLATE THICKNESS: 4.5 MM, PLATE WIDTH: 1.2 M, PLATE LENGTH: 2.5 M","PLATE","EA","VASTRAP","Carbon Steel Plates&Sheets","Structural steel","Plates & Sheets",{"$nulls":3},28,14,28,14,14,98,null,0,0,0,0,0,0,0,0,0,0,0,0,0,0,0,0]
["Project Wagons 1000","011005056","PLATE METAL;10 MM,1200 MM,2400 MM","PLATE, METALLIC; THICKNESS: 10 MM, WIDTH: 1200 MM, LENGTH: 2400 MM; MATERIAL GRADE NEW: EN 10025 S460 QL; MATERIAL GRADE OLD: ROQ LAST TH400 OR ROQ LAST AD360 GENERAL: MATERIAL CERTIFICATE TO EN 10204 TYPE 3.1 TO BE SUPPLIED. NO RUST OR CORROSION ON THE S","PLATE","EA","EN 10025 S460","Carbon Steel Plates&Sheets","Structural steel","Plates & Sheets",{"$nulls":3},18,18,{"$nulls":3},36,null,0,0,0,0,0,0,0,0,0,0,0,0,0,0,0,0]
["Project Wagons 1000","011822840","PLATE METAL;16 MM,1200 MM,2500 MM","PLATE, METALLIC; THICKNESS: 16 MM, WIDTH: 1200 MM, LENGTH: 2500 MM, MATERIAL GRADE: EN 10025 GRADE S355 JR; GENERAL: MATERIAL CERTIFICATE TO EN 10204 TYPE 3.1 TO BE SUPPLIED. NO RUST OR CORROSION ON THE SURFACE ALLOWED","PLATE","EA","EN 10025 S355 JR+AR","Carbon Steel Plates&Sheets","Structural steel","Plates & Sheets",{"$nulls":3},9,9,{"$nulls":3},18,null,0,0,0,0,0,0,0,0,0,0,0,0,0,0,0,0]
["Project Wagons 1000","011005251","PLATE METAL;12 MM,1200 MM,2500 MM,STL","PLATE, METALLIC; THICKNESS: 12 MM, WIDTH: 1200 MM, LENGTH: 2500 MM, PLATE MATERIAL: STEEL; MATERIAL GRADE NEW: EN 10025 S355 JR+AR; MATERIAL GRADE OLD: SABS 1431 350 WA OR SABS 1431 WR50B1 OR COR-TEN; GENERAL: MATERIAL CERTIFICATE TO EN 10204 TYPE 3.1 TO","PLATE","EA","EN 10025 S355 JR+AR","Carbon Steel Plates&Sheets","Structural steel","Plates & Sheets",{"$nulls":3},1025,1025,{"$nulls":3},2050,null,0,0,0,0,0,0,0,0,0,0,0,0,0,0,0,0]
["Project Wagons 1000","011005251","PLATE METAL;12 MM,1200 MM,2500 MM,STL","PLATE, METALLIC; THICKNESS: 12 MM, WIDTH: 1200 MM, LENGTH: 2500 MM, PLATE MATERIAL: STEEL; MATERIAL GRADE NEW: EN 10025 S355 JR+AR; MATERIAL GRADE OLD: SABS 1431 350 WA OR SABS 1431 WR50B1 OR COR-TEN; GENERAL: MATERIAL CERTIFICATE TO EN 10204 TYPE 3.1 TO","PLATE","EA","EN 10025 S355 JR+AR","Carbon Steel Plates&Sheets","Structural steel","Plates & Sheets",{"$nulls":3},43,43,{"$nulls":3},86,null,0,0,0,0,0,0,0,0,0,0,0,0,0,0,0,0]
["Project Wagons 1000","011008837","PLATE METAL;6 MM,1500 MM,3000 MM,STL","PLATE, METALLIC; THICKNESS: 6 MM, WIDTH: 1500 MM, LENGTH: 3000 MM, PLATE MATERIAL: STEEL; MATERIAL GRADE NEW: EN 10025 S460 QL MATERIAL GRADE OLD: ROQ LAST TH400 OR ROQ LAST AD360 GENERAL: MATERIAL CERTIFICATE TO EN 10204 TYPE 3.1 TO BE SUPPLIED. NO RUST","PLATE","EA","EN 10025 S460","Carbon Steel Plates&Sheets","Structural steel","Plates & Sheets",{"$nulls":3},6,6,{"$nulls":3},12,null,0,0,0,0,0,0,0,0,0,0,0,0,0,0,0,0]
["Project Wagons 1000","011011112","SHEET METAL 5mm;EN 10025 GR S355 JR+AR,","SHEET, METALLIC; MATERIAL GRADE: EN 10025 GRADE S355 JR+AR, MATERIAL: STEEL, THICKNESS: 5 MM, WIDTH: 1200 MM, LENGTH: 2500 MM; GENERAL: MATERIAL CERTIFICATE TO EN 10204 TYPE 3.1 TO BE SUPPLIED. NO RUST OR CORROSION ON THE SURFACE ALLOWED. SUITABLE FOR LAS","SHEET","EA","EN 10025 S355 JR+AR","Carbon Steel Plates&Sheets","Structural steel","Plates & Sheets",{"$nulls":3},8,8,{"$nulls":3},16,null,{"$f":"+T131*N131","v":0},0,{"$f":"T131*1.06","v":0},{"$f":"(W131*O131)","v":0},0,{"$f":"W131*1.06","v":0},{"$f":"(+Z131)*P131","v":0},0,0,{"$f":"(AC131)*Q131","v":0},0,{"$f":"AC131*1.06","v":0},{"$f":"(+AF131)*R131","v":0},0,{"$f":"AG131+AD131+AA131+X131+U131","v":0},0]
["Project Wagons 1000","011005388","PLATE METAL;20 MM,1200 MM,2500 MM","PLATE, METALLIC; THICKNESS: 20 MM, WIDTH: 1200 MM, LENGTH: 2500 MM; MATERIAL GRADE NEW: EN 10025 S355 JR+AR MATERIAL GRADE OLD: EN 10025 / SANS 50025 S355 JR+AR OR EN 10028 P355NL1 GENERAL: MATERIAL CERTIFICATE TO EN 10204 TYPE 3.1 TO BE SUPPLIED. NO RUST","PLATE","EA","EN 10025 S355 JR+AR","Carbon Steel Plates&Sheets","Structural steel","Plates & Sheets",{"$nulls":3},246.5,246.5,{"$nulls":3},493,null,0,{"$f":"U132*1.15","v":0},0,0,{"$f":"X132*1.15","v":0},0,0,{"$f":"AA132*1.15","v":0},{"$f":"Z132*1.06","v":0},0,{"$f":"AD132*1.15","v":0},0,0,{"$f":"AG132*1.15","v":0},0,{"$f":"AI132*1.15","v":0}]
["Project Wagons 1000","011005465","PLATE METAL;25 MM,1200 MM,2500 MM","PLATE, METALLIC; THICKNESS: 25 MM, WIDTH: 1200 MM, LENGTH: 2500 MM, MATERIAL GRADE NEW: EN 10025 S355 JR+AR; MATERIAL GRADE OLD: SANS 50025/EN 10025 GRADE S355 JR+AR OR EN 10028 P355NL1; GENERAL: MATERIAL CERTIFICTE TO EN 10204 TYPE 3.1 TO BE SUPPLIED; NO","PLATE","EA","EN 10025 S355 JR+AR","Carbon Steel Plates&Sheets","Structural steel","Plates & Sheets",{"$nulls":3},600,600,{"$nulls":3},1200,null,0,0,0,0,0,0,0,0,0,0,0,0,0,0,0,0]
["Project Wagons 1000","311009104","PLATE METAL;12 MM,1500 MM,3000 MM","PLATE, METALLIC; THICKNESS: 12 MM, WIDTH: 1500 MM, LENGTH: 3000 MM, MATERIAL GRADE: EN 10025 S355 JR+AR; GENERAL: MATERIAL CERTIFICATE TO EN 10204 TYPE 3.1 TO BE SUPPLIED. NO RUST OR CORROSION ON THE SURFACE ALLOWED.","PLATE","EA","EN 10025 S355 JR+AR","Carbon Steel Plates&Sheets","Structural steel","Plates & Sheets",{"$nulls":3},511,511,{"$nulls":3},1022,null,0,0,0,0,0,0,0,0,0,0,0,0,0,0,0,0]
["Project Wagons 1000","011005162","PLATE METAL;8 MM,1200 MM,2500 MM","PLATE, METALLIC; THICKNESS: 8 MM, WIDTH: 1200 MM, LENGTH: 2500 MM; MATERIAL GRADE NEW: EN 10025 S355 JR+AR; MATERIAL GRADE OLD: EN 10025 / SANS 50025 S355 JR+AR OR EN 10028 P355NL1; GENERAL: MATERIAL CERTIFICATE TO EN 10204 TYPE 3.1 TO BE SUPPLIED. NO RUS","PLATE","EA","EN 10025 S355 JR+AR","Carbon Steel Plates&Sheets","Structural steel","Plates & Sheets",{"$nulls":3},1045,1045,{"$nulls":3},2090,null,0,0,0,0,0,0,0,0,0,0,0,0,0,0,0,0]
["Project Wagons 1000","011005339","PLATE METAL;16 MM,1200 MM,2500 MM","PLATE, METALLIC; THICKNESS: 16 MM, WIDTH: 1200 MM, LENGTH: 2500 MM; MATERIAL GRADE NEW: EN 10025 S355 JR+AR; MATERIAL GRADE OLD: EN 10025 / SANS 50025 S355 JR+AR OR EN 10028 P355NL1; GENERAL: MATERIAL CERTIFICATE TO EN 10204 TYPE 3.1 TO BE SUPPLIED. NO RU","PLATE","EA","EN 10025 S355 JR+AR","Carbon Steel Plates&Sheets","Structural steel","Plates & Sheets",{"$nulls":3},1736,1736,{"$nulls":3},3472,null,0,0,0,0,0,0,0,0,0,0,0,0,0,0,0,0]
["Project Wagons 1000","011005339","PLATE METAL;16 MM,1200 MM,2500 MM","PLATE, METALLIC; THICKNESS: 16 MM, WIDTH: 1200 MM, LENGTH: 2500 MM; MATERIAL GRADE NEW: EN 10025 S355 JR+AR; MATERIAL GRADE OLD: EN 10025 / SANS 50025 S355 JR+AR OR EN 10028 P355NL1; GENERAL: MATERIAL CERTIFICATE TO EN 10204 TYPE 3.1 TO BE SUPPLIED. NO RU","PLATE","EA","EN 10025 S355 JR+AR","Carbon Steel Plates&Sheets","Structural steel","Plates & Sheets",{"$nulls":3},1531,1531,{"$nulls":3},3062,null,0,0,0,0,0,0,0,0,0,0,0,0,0,0,0,0]
["Project Wagons 1000","11005198","PLATE METAL;10 MM,1200 MM,2500 MM","PLATE, METALLIC; THICKNESS: 10 MM, WIDTH: 1200 MM, LENGTH: 2500 MM; DRAWING NO: CME 9/LATEST, LA; SANS 50025 GR.S355JR CERTIFICATE TO BE SENT WHEN DELIVERING MATERIAL; GENERAL: MATERIAL CERTIFICATE TO EN 10204 TYPE 3.1 TO BE SUPPLIED. NO RUST OR CORROSION","PLATE","EA","EN 10025 S355 JR+AR","Carbon Steel Plates&Sheets","Structural steel","Plates & Sheets",{"$nulls":3},506,506,{"$nulls":3},1012,null,0,0,0,0,0,0,0,0,0,0,0,0,0,0,0,0]
["Project Wagons 1000","11005198","PLATE METAL;10 MM,1200 MM,2500 MM","PLATE, METALLIC; THICKNESS: 10 MM, WIDTH: 1200 MM, LENGTH: 2500 MM; DRAWING NO: CME 9/LATEST, LA; SANS 50025 GR.S355JR CERTIFICATE TO BE SENT WHEN DELIVERING MATERIAL; GENERAL: MATERIAL CERTIFICATE TO EN 10204 TYPE 3.1 TO BE SUPPLIED. NO RUST OR CORROSION","PLATE","EA","EN 10025 S355 JR+AR","Carbon Steel Plates&Sheets","Structural steel","Plates & Sheets",{"$nulls":3},73,73,{"$nulls":3},146,null,0,0,0,0,0,0,0,0,0,0,0,0,0,0,0,0]
["Project Wagons 1000","011005578","PLATE METAL;50 MM,1200 MM,2500 MM","PLATE, METALLIC; THICKNESS: 50 MM, WIDTH: 1200 MM, LENGTH: 2500 MM; MATERIAL GRADE NEW: EN 10025 S355 JR+AR MATERIAL GRADE OLD: EN 10025 / SANS 50025 S355 JR+AR OR EN 10028 P355NL1 GENERAL: MATERIAL CERTIFICATE TO EN 10204 TYPE 3.1 TO BE SUPPLIED. NO RUST","PLATE","EA","EN 10025 S355 JR+AR","Carbon Steel Plates&Sheets","Structural Steel","Plates & Sheets",{"$nulls":3},12,12,{"$nulls":3},24,null,0,0,0,0,0,0,0,0,0,0,0,0,0,0,0,0]
["Project Wagons 1000","011011298","PLATE METAL;6 MM,1200 MM,2500 MM,STL","PLATE, METALLIC; THICKNESS: 6 MM, WIDTH: 1200 MM, LENGTH: 2500 MM, PLATE MATERIAL: STEEL, MATERIAL GRADE: SANS 50025 S355 JR+AR; GE NERAL: MATERIAL CERTIFICATE TO EN 10204 TYPE 3.1 TO BE SUPPLIED. NO RUST OR CORROSION ON THE SURFACE ALLOWED. FOR PLANT 110","PLATE","EA","EN 10025 S355 JR+AR","Carbon Steel Plates&Sheets","Structural steel","Plates & Sheets",{"$nulls":3},160,160,{"$nulls":3},320,null,0,0,0,0,0,0,0,0,0,0,0,0,0,0,0,0]
["Project Wagons 1000","011011298","PLATE METAL;6 MM,1200 MM,2500 MM,STL","PLATE, METALLIC; THICKNESS: 6 MM, WIDTH: 1200 MM, LENGTH: 2500 MM, PLATE MATERIAL: STEEL, MATERIAL GRADE: SANS 50025 S355 JR+AR; GE NERAL: MATERIAL CERTIFICATE TO EN 10204 TYPE 3.1 TO BE SUPPLIED. NO RUST OR CORROSION ON THE SURFACE ALLOWED. FOR PLANT 110","PLATE","EA","EN 10025 S355 JR+AR","Carbon Steel Plates&Sheets","Structural steel","Plates & Sheets",{"$nulls":3},29,29,{"$nulls":3},58,null,0,0,0,0,0,0,0,0,0,0,0,0,0,0,0,0]
["Project Wagons 1000","911500211","PLATE METAL;6 MM,1800 MM,3000 MM","PLATE, METALLIC; THICKNESS: 6 MM, WIDTH: 1800 MM, LENGTH: 3000 MM; MATERIAL GRADE NEW: EN 10025 S355 JR+AR MATERIAL GRADE OLD: SABS 1413 WR50B1 OR SABS 1431 350WA; GENERAL: MATERIAL CERTIFICATE TO EN 10204 TYPE 3.1 TO BE SUPPLIED. NO RUST OR CORROSION ON","PLATE","EA","EN 10025 S355 JR+AR","Carbon Steel Plates&Sheets","Structural steel","Plates & Sheets",{"$nulls":3},1585.5,1585.5,{"$nulls":3},3171,null,0,0,0,0,0,0,0,0,0,0,0,0,0,0,0,0]
["Project Wagons 1000","911500211","PLATE METAL;6 MM,1800 MM,3000 MM","PLATE, METALLIC; THICKNESS: 6 MM, WIDTH: 1800 MM, LENGTH: 3000 MM; MATERIAL GRADE NEW: EN 10025 S355 JR+AR MATERIAL GRADE OLD: SABS 1413 WR50B1 OR SABS 1431 350WA; GENERAL: MATERIAL CERTIFICATE TO EN 10204 TYPE 3.1 TO BE SUPPLIED. NO RUST OR CORROSION ON","PLATE","EA","EN 10025 S355 JR+AR","Carbon Steel Plates&Sheets","Structural steel","Plates & Sheets",{"$nulls":3},39,39,{"$nulls":3},78,null,0,0,0,0,0,0,0,0,0,0,0,0,0,0,0,0]
["Project Wagons 1000","011011060","SHEET 3mm METAL;EN 10025 GR S355","SHEET, METALLIC; MATERIAL GRADE: EN 10025 GRADE S355 JR+AR, MATERIAL: STEEL, THICKNESS: 3 MM, WIDTH: 1225 MM, LENGTH: 2450 MM; GENERAL: MATERIAL CERTIFICATE TO EN 10204 TYPE 3.1 TO BE SUPPLIED. NO RUST OR CORROSION ON THE SURFACE ALLOWED. SUITABLE FOR LAS","SHEET","EA","EN 10025 S355 JR+AR","Carbon Steel Plates&Sheets","Structural steel","Plates & Sheets",{"$nulls":3},27,27,{"$nulls":3},54,null,0,0,0,0,0,0,0,0,0,0,0,0,0,0,0,0]
["Maritime","011865200","PLATE METAL;8 MM,1.2 M,2.5 M,STL;R-C700","PLATE, METALLIC; THICKNESS: 8 MM, WIDTH: 1.2 M, LENGTH: 2.5 M, PLATE MATERIAL: STEEL, MATERIAL GRADE: R-C700 OR EQUIVALENT; NOTE: SUPPLIER TO PRESENT DATASHEET OF ALTERNATIVE TO R-C700 FOR APPROVAL","PLATE","EA","R-C700","Carbon Steel Plates&Sheets","Carbon Steel_Plate&Sheet_SA  wear-resistant","Plates & Sheets",{"$nulls":3},20,20,20,20,20,100,null,0,0,0,0,0,0,0,0,0,0,0,0,0,0,0,0]
["Project Wagons 1000","077441300","PLATE METAL;10 MM,WD:1.2 M,LG:6 M,STL","PLATE, METALLIC; THICKNESS: 10 MM, WIDTH: 1.2 M, LENGTH: 6 M, PLATE MATERIAL: STEEL, MATERIAL GRADE: EN 10025-3:2004 S355J2C+N; ES40 BOGIE FRAME; AS PER MILL SPECIFICATIONS; THE MINIMUM YIELD STRENGTH VARIES PER THICKNESS FROM 328 TO 355","PLATE","EA"," EN 10025  S355 J2C+N","Carbon Steel Plates&Sheets","Structural Steel","Plates & Sheets",{"$nulls":3},1,1,{"$nulls":3},2,null,0,0,0,0,0,0,0,0,0,0,0,0,0,0,0,0]
["Maritime","011866276","PLATE METAL;12 MM,1.2 M,2.5 M,STL,R-C700","PLATE, METALLIC; THICKNESS: 12 MM, WIDTH: 1.2 M, LENGTH: 2.5 M, PLATE MATERIAL: STEEL, MATERIAL GRADE: R-C700; RIO-CARB; \nALTERNATI VE STEEL GRADE: HARDPLATE 100S OR SIMILAR; \nALL MATERIALS TO BE DELIVERED WITH MATERIAL CERTIFICATES","PLATE","EA","R-C700","Carbon Steel Plates&Sheets","Carbon Steel_Plate&Sheet_SA  wear-resistant","Plates & Sheets",{"$nulls":3},60,60,60,60,60,300,null,0,0,0,0,0,0,0,0,0,0,0,0,0,0,0,0]
[{"$nulls":34},{"$f":"SUM(AI3:AI148)","v":0},0]
["I hereby acknowledge as a bidder that I have read and understood all the contents of this Purchase Order Long text Description . Furthermore, I (bidder) certifies and guarantees acceptance and compliance with this specification. Total value of these items must be carried over to page 33 of the RFP document.\n                                                                                                                                                                                                                                                                                                                                                                                         SIGNED THIS DAY _______________________ AT_________________________________\n                                                                                                                                                                                                                                                                                                        BY________________________________________________ (Full name in block letters)\n                                                                                                                                                                                                                                                                                                                                                                                                    IN MY CAPACITY AS ___________________________________ (Official designation)\n                                                                                                                                                                                                                                                                                                                                                                                               FOR THE COMPANY ___________________________________\n\nSIGNED _____________________________________________\n                                                                                                                                                                                                                                                                                                                                                                                            PLEASE NOTE: A Bidder must sign on the above and return this page together with a quote. "]